{"text_format":"1","workbook":"xlsx","n_sheets":2,"sheets":["Календарь","Сюда писать события"],"not_rendered":{"charts":0,"images":0,"macros":1,"external_links":0,"defined_names":9,"comments":0,"pivot_tables":0},"unopened":[],"bounds":{"document_bytes":16777216,"sheet_cells":100000,"rows_first":2000,"rows_last":500,"rows_between":2000,"halvings":0,"cell_chars":16384,"cell_head_chars":4096},"cells_cut":0,"cells_raw":0,"read":"whole","date_system":"1900"}

{"sheet":"Календарь","index":0,"n_rows":28,"n_cols":32,"rows_kept":28,"cut":false,"hidden":false,"merged":[[4,1,4,7],[12,1,12,7],[20,1,20,7],[4,9,4,15],[4,17,4,23],[20,9,20,15],[20,17,20,23],[4,25,4,31],[12,9,12,15],[12,17,12,23],[12,25,12,31]]}
["График проверок и семинаров"]
["Интерактивный календарь"]
[]
[]
[null,"2013-10-01",null,null,null,null,null,null,null,"2014-01-01",null,null,null,null,null,null,null,"2014-04-01",null,null,null,null,null,null,null,"2014-07-01"]
[null,"Пн","Вт","Ср","Чт","Пт","Сб","Вс",null,"Пн","Вт","Ср","Чт","Пт","Сб","Вс",null,"Пн","Вт","Ср","Чт","Пт","Сб","Вс",null,"Пн","Вт","Ср","Чт","Пт","Сб","Вс"]
[null,null,"2013-10-01","2013-10-02","2013-10-03","2013-10-04","2013-10-05","2013-10-06",null,null,null,"2014-01-01","2014-01-02","2014-01-03","2014-01-04","2014-01-05",null,null,"2014-04-01","2014-04-02","2014-04-03","2014-04-04","2014-04-05","2014-04-06",null,null,"2014-07-01","2014-07-02","2014-07-03","2014-07-04","2014-07-05","2014-07-06"]
[null,"2013-10-07","2013-10-08","2013-10-09","2013-10-10","2013-10-11","2013-10-12","2013-10-13",null,"2014-01-06","2014-01-07","2014-01-08","2014-01-09","2014-01-10","2014-01-11","2014-01-12",null,"2014-04-07","2014-04-08","2014-04-09","2014-04-10","2014-04-11","2014-04-12","2014-04-13",null,"2014-07-07","2014-07-08","2014-07-09","2014-07-10","2014-07-11","2014-07-12","2014-07-13"]
[null,"2013-10-14","2013-10-15","2013-10-16","2013-10-17","2013-10-18","2013-10-19","2013-10-20",null,"2014-01-13","2014-01-14","2014-01-15","2014-01-16","2014-01-17","2014-01-18","2014-01-19",null,"2014-04-14","2014-04-15","2014-04-16","2014-04-17","2014-04-18","2014-04-19","2014-04-20",null,"2014-07-14","2014-07-15","2014-07-16","2014-07-17","2014-07-18","2014-07-19","2014-07-20"]
[null,"1900-01-21","1900-01-22","1900-01-23","1900-01-24","1900-01-25","1900-01-26","1900-01-27",null,"2014-01-20","2014-01-21","2014-01-22","2014-01-23","2014-01-24","2014-01-25","2014-01-26",null,"2014-04-21","2014-04-22","2014-04-23","2014-04-24","2014-04-25","2014-04-26","2014-04-27",null,"2014-07-21","2014-07-22","2014-07-23","2014-07-24","2014-07-25","2014-07-26","2014-07-27"]
[null,"1900-01-28","1900-01-29","1900-01-30","1900-01-31",null,null,null,null,"2014-01-27","2014-01-28","2014-01-29","2014-01-30","2014-01-31",null,null,null,"2014-04-28","2014-04-29","2014-04-30",null,null,null,null,null,"2014-07-28","2014-07-29","2014-07-30","2014-07-31"]
[]
[null,"2013-11-01",null,null,null,null,null,null,null,"2014-02-01",null,null,null,null,null,null,null,"2014-05-01",null,null,null,null,null,null,null,"2014-08-01"]
[null,"Пн","Вт","Ср","Чт","Пт","Сб","Вс",null,"Пн","Вт","Ср","Чт","Пт","Сб","Вс",null,"Пн","Вт","Ср","Чт","Пт","Сб","Вс",null,"Пн","Вт","Ср","Чт","Пт","Сб","Вс"]
[null,null,null,null,null,"2013-11-01","2013-11-02","2013-11-03",null,null,null,null,null,null,"2014-02-01","2014-02-02",null,null,null,null,"2014-05-01","2014-05-02","2014-05-03","2014-05-04",null,null,null,null,null,"2014-08-01","2014-08-02","2014-08-03"]
[null,"2013-11-04","2013-11-05","2013-11-06","2013-11-07","2013-11-08","2013-11-09","2013-11-10",null,"2014-02-03","2014-02-04","2014-02-05","2014-02-06","2014-02-07","2014-02-08","2014-02-09",null,"2014-05-05","2014-05-06","2014-05-07","2014-05-08","2014-05-09","2014-05-10","2014-05-11",null,"2014-08-04","2014-08-05","2014-08-06","2014-08-07","2014-08-08","2014-08-09","2014-08-10"]
[null,"2013-11-11","2013-11-12","2013-11-13","2013-11-14","2013-11-15","2013-11-16","2013-11-17",null,"2014-02-10","2014-02-11","2014-02-12","2014-02-13","2014-02-14","2014-02-15","2014-02-16",null,"2014-05-12","2014-05-13","2014-05-14","2014-05-15","2014-05-16","2014-05-17","2014-05-18",null,"2014-08-11","2014-08-12","2014-08-13","2014-08-14","2014-08-15","2014-08-16","2014-08-17"]
[null,"2013-11-18","2013-11-19","2013-11-20","2013-11-21","2013-11-22","2013-11-23","2013-11-24",null,"2014-02-17","2014-02-18","2014-02-19","2014-02-20","2014-02-21","2014-02-22","2014-02-23",null,"2014-05-19","2014-05-20","2014-05-21","2014-05-22","2014-05-23","2014-05-24","2014-05-25",null,"2014-08-18","2014-08-19","2014-08-20","2014-08-21","2014-08-22","2014-08-23","2014-08-24"]
[null,"2013-11-25","2013-11-26","2013-11-27","2013-11-28","2013-11-29","2013-11-30",null,null,"2014-02-24","2014-02-25","2014-02-26","2014-02-27","2014-02-28",null,null,null,"2014-05-26","2014-05-27","2014-05-28","2014-05-29","2014-05-30","2014-05-31",null,null,"2014-08-25","2014-08-26","2014-08-27","2014-08-28","2014-08-29","2014-08-30","2014-08-31"]
[]
[null,"2013-12-01",null,null,null,null,null,null,null,"2014-03-01",null,null,null,null,null,null,null,"2014-06-01"]
[null,"Пн","Вт","Ср","Чт","Пт","Сб","Вс",null,"Пн","Вт","Ср","Чт","Пт","Сб","Вс",null,"Пн","Вт","Ср","Чт","Пт","Сб","Вс"]
[null,null,null,null,null,null,null,"2013-12-01",null,null,null,null,null,null,"2014-03-01","2014-03-02",null,null,null,null,null,null,null,"2014-06-01"]
[null,"2013-12-02","2013-12-03","2013-12-04","2013-12-05","2013-12-06","2013-12-07","2013-12-08",null,"2014-03-03","2014-03-04","2014-03-05","2014-03-06","2014-03-07","2014-03-08","2014-03-09",null,"2014-06-02","2014-06-03","2014-06-04","2014-06-05","2014-06-06","2014-06-07","2014-06-08"]
[null,"2013-12-09","2013-12-10","2013-12-11","2013-12-12","2013-12-13","2013-12-14","2013-12-15",null,"2014-03-10","2014-03-11","2014-03-12","2014-03-13","2014-03-14","2014-03-15","2014-03-16",null,"2014-06-09","2014-06-10","2014-06-11","2014-06-12","2014-06-13","2014-06-14","2014-06-15"]
[null,"2013-12-16","2013-12-17","2013-12-18","2013-12-19","2013-12-20","2013-12-21","2013-12-22",null,"2014-03-17","2014-03-18","2014-03-19","2014-03-20","2014-03-21","2014-03-22","2014-03-23",null,"2014-06-16","2014-06-17","2014-06-18","2014-06-19","2014-06-20","2014-06-21","2014-06-22"]
[null,"2013-12-23","2013-12-24","2013-12-25","2013-12-26","2013-12-27","2013-12-28","2013-12-29",null,"2014-03-24","2014-03-25","2014-03-26","2014-03-27","2014-03-28","2014-03-29","2014-03-30",null,"2014-06-23","2014-06-24","2014-06-25","2014-06-26","2014-06-27","2014-06-28","2014-06-29"]
[null,"2013-12-30","2013-12-31",null,null,null,null,null,null,"2014-03-31",null,null,null,null,null,null,null,"2014-06-30"]

{"sheet":"Сюда писать события","index":1,"n_rows":702,"n_cols":17,"rows_kept":702,"cut":false,"hidden":false,"merged":[[2,15,15,15],[2,16,15,16]]}
[null,null,null,null,null,null,null,null,null,null,"Выделенная Ячейка",null,"Выделенные даты",{"$f":"SUMIFS(Событие[Дата],Событие[Место или название компании],$K$9,Событие[Тема семинара],$K$10)-M2","v":-41548},{"$f":"LEFT(TEXT(N1,\"ДДД\"),2)","v":{"$error":"#VALUE!"}}]
[null,null,null,null,null,null,null,null,null,null,"2013-10-01",null,{"$f":"IF(ISERROR(K7),NA(),ВыделеннаяЯчейка)","v":"2013-10-01"},{"$f":"LEFT(TEXT(M2,\"ДДД\"),2)","v":"Вт"},null,"Benefits"]
[null,"Дата","Место или название компании","Тип события","Фамилии аудиторов","Тема семинара","Время начала семинара","Столбец1",null,null,null,null,{"$f":"VLOOKUP(K16,Событие[[Место или название компании]:[Столбец1]],6,0)","v":"2013-10-02"},null,null,"описание темы семинара\n","Проверки"]
[null,"2013-10-01","Декатлон",{"$f":"IF(E4<>\"\",\"проверка\",IF(F4<>\"\",\"семинар\",\"  \"))","v":"проверка"},"Иванова, Петров",null,null,{"$f":"IF(Событие[[#This Row],[Место или название компании]]<>C5,Событие[[#This Row],[Дата]],H5)","v":"2013-10-02"}]
[null,"2013-10-02","Декатлон",{"$f":"IF(E5<>\"\",\"проверка\",IF(F5<>\"\",\"семинар\",\"  \"))","v":"проверка"},"Иванова, Петров",null,null,{"$f":"IF(Событие[[#This Row],[Место или название компании]]<>C6,Событие[[#This Row],[Дата]],H6)","v":"2013-10-02"}]
[null,"2013-10-01","Санкт-Петербург","семинар",null,"\"Развод мостов в реальности\"","10.10 Пулково",{"$f":"IF(Событие[[#This Row],[Место или название компании]]<>C7,Событие[[#This Row],[Дата]],H7)","v":"2013-10-05"}]
[null,"2013-10-02","Санкт-Петербург","семинар",null,"\"Развод мостов в реальности\"","10.10 Пулково",{"$f":"IF(Событие[[#This Row],[Место или название компании]]<>C9,Событие[[#This Row],[Дата]],H9)","v":"2013-10-05"}]
[null,"2013-10-01","Магадан","семинар",null,"Песни Колымского тракта",null,{"$f":"IF(Событие[[#This Row],[Место или название компании]]<>C9,Событие[[#This Row],[Дата]],H9)","v":"2013-10-01"}]
[null,"2013-10-05","Санкт-Петербург","семинар",null,"\"Развод мостов в реальности\"","10.10 Пулково",{"$f":"IF(Событие[[#This Row],[Место или название компании]]<>C10,Событие[[#This Row],[Дата]],H10)","v":"2013-10-05"}]
[null,"2013-10-15","Якутск","семинар",null," \"Выживание в условиях вечной мерзлоты\"",null,{"$f":"IF(Событие[[#This Row],[Место или название компании]]<>C11,Событие[[#This Row],[Дата]],H11)","v":"2013-10-20"}]
[null,"2013-10-16","Якутск","семинар",null," \"Выживание в условиях вечной мерзлоты\"",null,{"$f":"IF(Событие[[#This Row],[Место или название компании]]<>C12,Событие[[#This Row],[Дата]],H12)","v":"2013-10-20"}]
[null,"2013-10-17","Якутск","семинар",null," \"Выживание в условиях вечной мерзлоты\"",null,{"$f":"IF(Событие[[#This Row],[Место или название компании]]<>C13,Событие[[#This Row],[Дата]],H13)","v":"2013-10-20"}]
[null,"2013-10-18","Якутск","семинар",null," \"Выживание в условиях вечной мерзлоты\"",null,{"$f":"IF(Событие[[#This Row],[Место или название компании]]<>C14,Событие[[#This Row],[Дата]],H14)","v":"2013-10-20"},null,null,{"$f":"SMALL(IF(ДатыСобытий=ВыделеннаяЯчейка,ROW(ДатыСобытий)-3),COLUMN(A1))","v":1},{"$f":"SMALL(IF(ДатыСобытий=ВыделеннаяЯчейка,ROW(ДатыСобытий)-3),COLUMN(B1))","v":3},{"$f":"SMALL(IF(ДатыСобытий=ВыделеннаяЯчейка,ROW(ДатыСобытий)-3),COLUMN(C1))","v":5},{"$f":"SMALL(IF(ДатыСобытий=ВыделеннаяЯчейка,ROW(ДатыСобытий)-3),COLUMN(D1))","v":{"$error":"#NUM!"}}]
[null,"2013-10-19","Якутск","семинар",null," \"Выживание в условиях вечной мерзлоты\"",null,{"$f":"IF(Событие[[#This Row],[Место или название компании]]<>C15,Событие[[#This Row],[Дата]],H15)","v":"2013-10-20"},null,"Название",{"$f":"IFERROR(INDEX($D$4:$D$702,K$13)&\"\",\"Выберите дату\")","v":"проверка"},{"$f":"IFERROR(INDEX($D$4:$D$702,L$13)&\"\",\"\")","v":"семинар"},{"$f":"IFERROR(INDEX($D$4:$D$702,M$13)&\"\",\"\")","v":"семинар"},{"$f":"IFERROR(INDEX($D$4:$D$702,N$13)&\"\",\"\")","v":""}]
[null,"2013-10-20","Якутск","семинар",null," \"Выживание в условиях вечной мерзлоты\"",null,{"$f":"IF(Событие[[#This Row],[Место или название компании]]<>C16,Событие[[#This Row],[Дата]],H16)","v":"2013-10-20"},null,"Тема",{"$f":"IFERROR(INDEX($F$4:$F$702,K$13)&INDEX($E$4:$E$702,K$13),\"\")","v":"Иванова, Петров"},{"$f":"IFERROR(INDEX($F$4:$F$702,L$13)&INDEX($E$4:$E$702,L$13),\"\")","v":"\"Развод мостов в реальности\""},{"$f":"IFERROR(INDEX($F$4:$F$702,M$13)&INDEX($E$4:$E$702,M$13),\"\")","v":"Песни Колымского тракта"},""]
[null,"2013-11-21","Краснодар","семинар",null," \"Выживание в условиях вечной мерзлоты\"",null,{"$f":"IF(Событие[[#This Row],[Место или название компании]]<>C17,Событие[[#This Row],[Дата]],H17)","v":"2013-11-21"},null,"Место",{"$f":"IFERROR(INDEX($C$4:$C$702,K$13)&\"\",\"\")","v":"Декатлон"},{"$f":"IFERROR(INDEX($C$4:$C$702,L$13)&\"\",\"\")","v":"Санкт-Петербург"},{"$f":"IFERROR(INDEX($C$4:$C$702,M$13)&\"\",\"\")","v":"Магадан"},{"$f":"IFERROR(INDEX($C$4:$C$702,N$13)&\"\",\"\")","v":""}]
[null,"2014-01-02","Пермь","проверка","Сидоров, Уткин",null,null,{"$f":"IF(Событие[[#This Row],[Место или название компании]]<>C18,Событие[[#This Row],[Дата]],H18)","v":"2014-01-02"},null,"Дата",{"$f":"IFERROR(TEXT(INDEX(ДатыСобытий,K$13),\"Д МММ  ГГ\")&\" - \"&TEXT(INDEX(КонДатыСобытий,K$13),\"Д МММ  ГГГГ\"),\"\")","v":"1 окт 13 - 2 окт 2013"},{"$f":"IFERROR(TEXT(INDEX(ДатыСобытий,L$13),\"Д МММ  ГГ\")&\" - \"&TEXT(INDEX(КонДатыСобытий,L$13),\"Д МММ  ГГГГ\"),\"\")","v":"1 окт 13 - 5 окт 2013"},{"$f":"IFERROR(TEXT(INDEX(ДатыСобытий,M$13),\"Д МММ  ГГ\")&\" - \"&TEXT(INDEX(КонДатыСобытий,M$13),\"Д МММ  ГГГГ\"),\"\")","v":"1 окт 13 - 1 окт 2013"},{"$f":"IFERROR(TEXT(INDEX(ДатыСобытий,N$13),\"ДД.ММ.ГГ\")&\"-\"&TEXT(INDEX(КонДатыСобытий,N$13),\"ДД.ММ.ГГ\"),\"\")","v":""}]
[null,"2014-03-31","Владивосток","проверка","Петров, Сидоров",null,null,{"$f":"IF(Событие[[#This Row],[Место или название компании]]<>C19,Событие[[#This Row],[Дата]],H19)","v":"2014-03-31"},null,{"$f":"IF(ISERROR(K9),\"\",\"Описание\")","v":"Описание"},{"$f":"IFERROR(INDEX($D$4:$D$702,K$13)&\"\",\"\")","v":"проверка"},{"$f":"IFERROR(INDEX($D$4:$D$702,L$13)&\"\",\"\")","v":"семинар"},{"$f":"IFERROR(INDEX($D$4:$D$702,M$13)&\"\",\"\")","v":"семинар"},{"$f":"IFERROR(INDEX($D$4:$D$702,N$13)&\"\",\"\")","v":""}]
[null,null,null,"  ",null,null,null,{"$f":"IF(Событие[[#This Row],[Место или название компании]]<>C20,Событие[[#This Row],[Дата]],H20)","v":"00:00:00"}]
[null,null,null,"  ",null,null,null,{"$f":"IF(Событие[[#This Row],[Место или название компании]]<>C21,Событие[[#This Row],[Дата]],H21)","v":"00:00:00"}]
[null,"2013-10-05","Иркутск","проверка","Кряков",null,null,{"$f":"IF(Событие[[#This Row],[Место или название компании]]<>C703,Событие[[#This Row],[Дата]],H703)","v":"2013-10-05"}]
[null,null,null,"  ",null,null,null,{"$f":"IF(Событие[[#This Row],[Место или название компании]]<>C704,Событие[[#This Row],[Дата]],H704)","v":"00:00:00"}]
[null,null,null,"  ",null,null,null,{"$f":"IF(Событие[[#This Row],[Место или название компании]]<>C705,Событие[[#This Row],[Дата]],H705)","v":"00:00:00"}]
[null,null,null,"  ",null,null,null,{"$f":"IF(Событие[[#This Row],[Место или название компании]]<>C706,Событие[[#This Row],[Дата]],H706)","v":"00:00:00"}]
[null,null,null,"  ",null,null,null,{"$f":"IF(Событие[[#This Row],[Место или название компании]]<>C707,Событие[[#This Row],[Дата]],H707)","v":"00:00:00"}]
[null,null,null,"  ",null,null,null,{"$f":"IF(Событие[[#This Row],[Место или название компании]]<>C708,Событие[[#This Row],[Дата]],H708)","v":"00:00:00"}]
[null,null,null,"  ",null,null,null,{"$f":"IF(Событие[[#This Row],[Место или название компании]]<>C709,Событие[[#This Row],[Дата]],H709)","v":"00:00:00"}]
[null,null,null,"  ",null,null,null,{"$f":"IF(Событие[[#This Row],[Место или название компании]]<>C710,Событие[[#This Row],[Дата]],H710)","v":"00:00:00"}]
[null,null,null,"  ",null,null,null,{"$f":"IF(Событие[[#This Row],[Место или название компании]]<>C711,Событие[[#This Row],[Дата]],H711)","v":"00:00:00"}]
[null,null,null,"  ",null,null,null,{"$f":"IF(Событие[[#This Row],[Место или название компании]]<>C712,Событие[[#This Row],[Дата]],H712)","v":"00:00:00"}]
[null,null,null,"  ",null,null,null,{"$f":"IF(Событие[[#This Row],[Место или название компании]]<>C713,Событие[[#This Row],[Дата]],H713)","v":"00:00:00"}]
[null,null,null,"  ",null,null,null,{"$f":"IF(Событие[[#This Row],[Место или название компании]]<>C714,Событие[[#This Row],[Дата]],H714)","v":"00:00:00"}]
[null,null,null,"  ",null,null,null,{"$f":"IF(Событие[[#This Row],[Место или название компании]]<>C715,Событие[[#This Row],[Дата]],H715)","v":"00:00:00"}]
[null,null,null,"  ",null,null,null,{"$f":"IF(Событие[[#This Row],[Место или название компании]]<>C716,Событие[[#This Row],[Дата]],H716)","v":"00:00:00"}]
[null,null,null,"  ",null,null,null,{"$f":"IF(Событие[[#This Row],[Место или название компании]]<>C717,Событие[[#This Row],[Дата]],H717)","v":"00:00:00"}]
[null,null,null,"  ",null,null,null,{"$f":"IF(Событие[[#This Row],[Место или название компании]]<>C718,Событие[[#This Row],[Дата]],H718)","v":"00:00:00"}]
[null,null,null,"  ",null,null,null,{"$f":"IF(Событие[[#This Row],[Место или название компании]]<>C719,Событие[[#This Row],[Дата]],H719)","v":"00:00:00"}]
[null,null,null,"  ",null,null,null,{"$f":"IF(Событие[[#This Row],[Место или название компании]]<>C720,Событие[[#This Row],[Дата]],H720)","v":"00:00:00"}]
[null,null,null,"  ",null,null,null,{"$f":"IF(Событие[[#This Row],[Место или название компании]]<>C721,Событие[[#This Row],[Дата]],H721)","v":"00:00:00"}]
[null,null,null,"  ",null,null,null,{"$f":"IF(Событие[[#This Row],[Место или название компании]]<>C722,Событие[[#This Row],[Дата]],H722)","v":"00:00:00"}]
[null,null,null,"  ",null,null,null,{"$f":"IF(Событие[[#This Row],[Место или название компании]]<>C723,Событие[[#This Row],[Дата]],H723)","v":"00:00:00"}]
[null,null,null,"  ",null,null,null,{"$f":"IF(Событие[[#This Row],[Место или название компании]]<>C724,Событие[[#This Row],[Дата]],H724)","v":"00:00:00"}]
[null,null,null,"  ",null,null,null,{"$f":"IF(Событие[[#This Row],[Место или название компании]]<>C725,Событие[[#This Row],[Дата]],H725)","v":"00:00:00"}]
[null,null,null,"  ",null,null,null,{"$f":"IF(Событие[[#This Row],[Место или название компании]]<>C726,Событие[[#This Row],[Дата]],H726)","v":"00:00:00"}]
[null,null,null,"  ",null,null,null,{"$f":"IF(Событие[[#This Row],[Место или название компании]]<>C727,Событие[[#This Row],[Дата]],H727)","v":"00:00:00"}]
[null,null,null,"  ",null,null,null,{"$f":"IF(Событие[[#This Row],[Место или название компании]]<>C728,Событие[[#This Row],[Дата]],H728)","v":"00:00:00"}]
[null,null,null,"  ",null,null,null,{"$f":"IF(Событие[[#This Row],[Место или название компании]]<>C729,Событие[[#This Row],[Дата]],H729)","v":"00:00:00"}]
[null,null,null,"  ",null,null,null,{"$f":"IF(Событие[[#This Row],[Место или название компании]]<>C730,Событие[[#This Row],[Дата]],H730)","v":"00:00:00"}]
[null,null,null,"  ",null,null,null,{"$f":"IF(Событие[[#This Row],[Место или название компании]]<>C731,Событие[[#This Row],[Дата]],H731)","v":"00:00:00"}]
[null,null,null,"  ",null,null,null,{"$f":"IF(Событие[[#This Row],[Место или название компании]]<>C732,Событие[[#This Row],[Дата]],H732)","v":"00:00:00"}]
[null,null,null,"  ",null,null,null,{"$f":"IF(Событие[[#This Row],[Место или название компании]]<>C733,Событие[[#This Row],[Дата]],H733)","v":"00:00:00"}]
[null,null,null,"  ",null,null,null,{"$f":"IF(Событие[[#This Row],[Место или название компании]]<>C734,Событие[[#This Row],[Дата]],H734)","v":"00:00:00"}]
[null,null,null,"  ",null,null,null,{"$f":"IF(Событие[[#This Row],[Место или название компании]]<>C735,Событие[[#This Row],[Дата]],H735)","v":"00:00:00"}]
[null,null,null,"  ",null,null,null,{"$f":"IF(Событие[[#This Row],[Место или название компании]]<>C736,Событие[[#This Row],[Дата]],H736)","v":"00:00:00"}]
[null,null,null,"  ",null,null,null,{"$f":"IF(Событие[[#This Row],[Место или название компании]]<>C737,Событие[[#This Row],[Дата]],H737)","v":"00:00:00"}]
[null,null,null,"  ",null,null,null,{"$f":"IF(Событие[[#This Row],[Место или название компании]]<>C738,Событие[[#This Row],[Дата]],H738)","v":"00:00:00"}]
[null,null,null,"  ",null,null,null,{"$f":"IF(Событие[[#This Row],[Место или название компании]]<>C739,Событие[[#This Row],[Дата]],H739)","v":"00:00:00"}]
[null,null,null,"  ",null,null,null,{"$f":"IF(Событие[[#This Row],[Место или название компании]]<>C740,Событие[[#This Row],[Дата]],H740)","v":"00:00:00"}]
[null,null,null,"  ",null,null,null,{"$f":"IF(Событие[[#This Row],[Место или название компании]]<>C741,Событие[[#This Row],[Дата]],H741)","v":"00:00:00"}]
[null,null,null,"  ",null,null,null,{"$f":"IF(Событие[[#This Row],[Место или название компании]]<>C742,Событие[[#This Row],[Дата]],H742)","v":"00:00:00"}]
[null,null,null,"  ",null,null,null,{"$f":"IF(Событие[[#This Row],[Место или название компании]]<>C743,Событие[[#This Row],[Дата]],H743)","v":"00:00:00"}]
[null,null,null,"  ",null,null,null,{"$f":"IF(Событие[[#This Row],[Место или название компании]]<>C744,Событие[[#This Row],[Дата]],H744)","v":"00:00:00"}]
[null,null,null,"  ",null,null,null,{"$f":"IF(Событие[[#This Row],[Место или название компании]]<>C745,Событие[[#This Row],[Дата]],H745)","v":"00:00:00"}]
[null,null,null,"  ",null,null,null,{"$f":"IF(Событие[[#This Row],[Место или название компании]]<>C746,Событие[[#This Row],[Дата]],H746)","v":"00:00:00"}]
[null,null,null,"  ",null,null,null,{"$f":"IF(Событие[[#This Row],[Место или название компании]]<>C747,Событие[[#This Row],[Дата]],H747)","v":"00:00:00"}]
[null,null,null,"  ",null,null,null,{"$f":"IF(Событие[[#This Row],[Место или название компании]]<>C748,Событие[[#This Row],[Дата]],H748)","v":"00:00:00"}]
[null,null,null,"  ",null,null,null,{"$f":"IF(Событие[[#This Row],[Место или название компании]]<>C749,Событие[[#This Row],[Дата]],H749)","v":"00:00:00"}]
[null,null,null,"  ",null,null,null,{"$f":"IF(Событие[[#This Row],[Место или название компании]]<>C750,Событие[[#This Row],[Дата]],H750)","v":"00:00:00"}]
[null,null,null,{"$f":"IF(E69<>\"\",\"проверка\",IF(F69<>\"\",\"семинар\",\"  \"))","v":"  "},null,null,null,{"$f":"IF(Событие[[#This Row],[Место или название компании]]<>C751,Событие[[#This Row],[Дата]],H751)","v":"00:00:00"}]
[null,null,null,"  ",null,null,null,{"$f":"IF(Событие[[#This Row],[Место или название компании]]<>C752,Событие[[#This Row],[Дата]],H752)","v":"00:00:00"}]
[null,null,null,"  ",null,null,null,{"$f":"IF(Событие[[#This Row],[Место или название компании]]<>C753,Событие[[#This Row],[Дата]],H753)","v":"00:00:00"}]
[null,null,null,"  ",null,null,null,{"$f":"IF(Событие[[#This Row],[Место или название компании]]<>C754,Событие[[#This Row],[Дата]],H754)","v":"00:00:00"}]
[null,null,null,"  ",null,null,null,{"$f":"IF(Событие[[#This Row],[Место или название компании]]<>C755,Событие[[#This Row],[Дата]],H755)","v":"00:00:00"}]
[null,null,null,"  ",null,null,null,{"$f":"IF(Событие[[#This Row],[Место или название компании]]<>C756,Событие[[#This Row],[Дата]],H756)","v":"00:00:00"}]
[null,null,null,"  ",null,null,null,{"$f":"IF(Событие[[#This Row],[Место или название компании]]<>C757,Событие[[#This Row],[Дата]],H757)","v":"00:00:00"}]
[null,null,null,"  ",null,null,null,{"$f":"IF(Событие[[#This Row],[Место или название компании]]<>C758,Событие[[#This Row],[Дата]],H758)","v":"00:00:00"}]
[null,null,null,"  ",null,null,null,{"$f":"IF(Событие[[#This Row],[Место или название компании]]<>C759,Событие[[#This Row],[Дата]],H759)","v":"00:00:00"}]
[null,null,null,"  ",null,null,null,{"$f":"IF(Событие[[#This Row],[Место или название компании]]<>C760,Событие[[#This Row],[Дата]],H760)","v":"00:00:00"}]
[null,null,null,"  ",null,null,null,{"$f":"IF(Событие[[#This Row],[Место или название компании]]<>C761,Событие[[#This Row],[Дата]],H761)","v":"00:00:00"}]
[null,null,null,"  ",null,null,null,{"$f":"IF(Событие[[#This Row],[Место или название компании]]<>C762,Событие[[#This Row],[Дата]],H762)","v":"00:00:00"}]
[null,null,null,"  ",null,null,null,{"$f":"IF(Событие[[#This Row],[Место или название компании]]<>C763,Событие[[#This Row],[Дата]],H763)","v":"00:00:00"}]
[null,null,null,"  ",null,null,null,{"$f":"IF(Событие[[#This Row],[Место или название компании]]<>C764,Событие[[#This Row],[Дата]],H764)","v":"00:00:00"}]
[null,null,null,"  ",null,null,null,{"$f":"IF(Событие[[#This Row],[Место или название компании]]<>C765,Событие[[#This Row],[Дата]],H765)","v":"00:00:00"}]
[null,null,null,"  ",null,null,null,{"$f":"IF(Событие[[#This Row],[Место или название компании]]<>C766,Событие[[#This Row],[Дата]],H766)","v":"00:00:00"}]
[null,null,null,"  ",null,null,null,{"$f":"IF(Событие[[#This Row],[Место или название компании]]<>C767,Событие[[#This Row],[Дата]],H767)","v":"00:00:00"}]
[null,null,null,"  ",null,null,null,{"$f":"IF(Событие[[#This Row],[Место или название компании]]<>C768,Событие[[#This Row],[Дата]],H768)","v":"00:00:00"}]
[null,null,null,"  ",null,null,null,{"$f":"IF(Событие[[#This Row],[Место или название компании]]<>C769,Событие[[#This Row],[Дата]],H769)","v":"00:00:00"}]
[null,null,null,"  ",null,null,null,{"$f":"IF(Событие[[#This Row],[Место или название компании]]<>C770,Событие[[#This Row],[Дата]],H770)","v":"00:00:00"}]
[null,null,null,"  ",null,null,null,{"$f":"IF(Событие[[#This Row],[Место или название компании]]<>C771,Событие[[#This Row],[Дата]],H771)","v":"00:00:00"}]
[null,null,null,"  ",null,null,null,{"$f":"IF(Событие[[#This Row],[Место или название компании]]<>C772,Событие[[#This Row],[Дата]],H772)","v":"00:00:00"}]
[null,null,null,"  ",null,null,null,{"$f":"IF(Событие[[#This Row],[Место или название компании]]<>C773,Событие[[#This Row],[Дата]],H773)","v":"00:00:00"}]
[null,null,null,"  ",null,null,null,{"$f":"IF(Событие[[#This Row],[Место или название компании]]<>C774,Событие[[#This Row],[Дата]],H774)","v":"00:00:00"}]
[null,null,null,"  ",null,null,null,{"$f":"IF(Событие[[#This Row],[Место или название компании]]<>C775,Событие[[#This Row],[Дата]],H775)","v":"00:00:00"}]
[null,null,null,"  ",null,null,null,{"$f":"IF(Событие[[#This Row],[Место или название компании]]<>C776,Событие[[#This Row],[Дата]],H776)","v":"00:00:00"}]
[null,null,null,"  ",null,null,null,{"$f":"IF(Событие[[#This Row],[Место или название компании]]<>C777,Событие[[#This Row],[Дата]],H777)","v":"00:00:00"}]
[null,null,null,"  ",null,null,null,{"$f":"IF(Событие[[#This Row],[Место или название компании]]<>C778,Событие[[#This Row],[Дата]],H778)","v":"00:00:00"}]
[null,null,null,"  ",null,null,null,{"$f":"IF(Событие[[#This Row],[Место или название компании]]<>C779,Событие[[#This Row],[Дата]],H779)","v":"00:00:00"}]
[null,null,null,"  ",null,null,null,{"$f":"IF(Событие[[#This Row],[Место или название компании]]<>C780,Событие[[#This Row],[Дата]],H780)","v":"00:00:00"}]
[null,null,null,"  ",null,null,null,{"$f":"IF(Событие[[#This Row],[Место или название компании]]<>C781,Событие[[#This Row],[Дата]],H781)","v":"00:00:00"}]
[null,null,null,"  ",null,null,null,{"$f":"IF(Событие[[#This Row],[Место или название компании]]<>C782,Событие[[#This Row],[Дата]],H782)","v":"00:00:00"}]
[null,null,null,"  ",null,null,null,{"$f":"IF(Событие[[#This Row],[Место или название компании]]<>C783,Событие[[#This Row],[Дата]],H783)","v":"00:00:00"}]
[null,null,null,"  ",null,null,null,{"$f":"IF(Событие[[#This Row],[Место или название компании]]<>C784,Событие[[#This Row],[Дата]],H784)","v":"00:00:00"}]
[null,null,null,"  ",null,null,null,{"$f":"IF(Событие[[#This Row],[Место или название компании]]<>C785,Событие[[#This Row],[Дата]],H785)","v":"00:00:00"}]
[null,null,null,"  ",null,null,null,{"$f":"IF(Событие[[#This Row],[Место или название компании]]<>C786,Событие[[#This Row],[Дата]],H786)","v":"00:00:00"}]
[null,null,null,"  ",null,null,null,{"$f":"IF(Событие[[#This Row],[Место или название компании]]<>C787,Событие[[#This Row],[Дата]],H787)","v":"00:00:00"}]
[null,null,null,"  ",null,null,null,{"$f":"IF(Событие[[#This Row],[Место или название компании]]<>C788,Событие[[#This Row],[Дата]],H788)","v":"00:00:00"}]
[null,null,null,"  ",null,null,null,{"$f":"IF(Событие[[#This Row],[Место или название компании]]<>C789,Событие[[#This Row],[Дата]],H789)","v":"00:00:00"}]
[null,null,null,"  ",null,null,null,{"$f":"IF(Событие[[#This Row],[Место или название компании]]<>C790,Событие[[#This Row],[Дата]],H790)","v":"00:00:00"}]
[null,null,null,"  ",null,null,null,{"$f":"IF(Событие[[#This Row],[Место или название компании]]<>C791,Событие[[#This Row],[Дата]],H791)","v":"00:00:00"}]
[null,null,null,"  ",null,null,null,{"$f":"IF(Событие[[#This Row],[Место или название компании]]<>C792,Событие[[#This Row],[Дата]],H792)","v":"00:00:00"}]
[null,null,null,"  ",null,null,null,{"$f":"IF(Событие[[#This Row],[Место или название компании]]<>C793,Событие[[#This Row],[Дата]],H793)","v":"00:00:00"}]
[null,null,null,"  ",null,null,null,{"$f":"IF(Событие[[#This Row],[Место или название компании]]<>C794,Событие[[#This Row],[Дата]],H794)","v":"00:00:00"}]
[null,null,null,"  ",null,null,null,{"$f":"IF(Событие[[#This Row],[Место или название компании]]<>C795,Событие[[#This Row],[Дата]],H795)","v":"00:00:00"}]
[null,null,null,"  ",null,null,null,{"$f":"IF(Событие[[#This Row],[Место или название компании]]<>C796,Событие[[#This Row],[Дата]],H796)","v":"00:00:00"}]
[null,null,null,"  ",null,null,null,{"$f":"IF(Событие[[#This Row],[Место или название компании]]<>C797,Событие[[#This Row],[Дата]],H797)","v":"00:00:00"}]
[null,null,null,"  ",null,null,null,{"$f":"IF(Событие[[#This Row],[Место или название компании]]<>C798,Событие[[#This Row],[Дата]],H798)","v":"00:00:00"}]
[null,null,null,"  ",null,null,null,{"$f":"IF(Событие[[#This Row],[Место или название компании]]<>C799,Событие[[#This Row],[Дата]],H799)","v":"00:00:00"}]
[null,null,null,"  ",null,null,null,{"$f":"IF(Событие[[#This Row],[Место или название компании]]<>C800,Событие[[#This Row],[Дата]],H800)","v":"00:00:00"}]
[null,null,null,"  ",null,null,null,{"$f":"IF(Событие[[#This Row],[Место или название компании]]<>C801,Событие[[#This Row],[Дата]],H801)","v":"00:00:00"}]
[null,null,null,"  ",null,null,null,{"$f":"IF(Событие[[#This Row],[Место или название компании]]<>C802,Событие[[#This Row],[Дата]],H802)","v":"00:00:00"}]
[null,null,null,"  ",null,null,null,{"$f":"IF(Событие[[#This Row],[Место или название компании]]<>C803,Событие[[#This Row],[Дата]],H803)","v":"00:00:00"}]
[null,null,null,"  ",null,null,null,{"$f":"IF(Событие[[#This Row],[Место или название компании]]<>C804,Событие[[#This Row],[Дата]],H804)","v":"00:00:00"}]
[null,null,null,"  ",null,null,null,{"$f":"IF(Событие[[#This Row],[Место или название компании]]<>C805,Событие[[#This Row],[Дата]],H805)","v":"00:00:00"}]
[null,null,null,"  ",null,null,null,{"$f":"IF(Событие[[#This Row],[Место или название компании]]<>C806,Событие[[#This Row],[Дата]],H806)","v":"00:00:00"}]
[null,null,null,"  ",null,null,null,{"$f":"IF(Событие[[#This Row],[Место или название компании]]<>C807,Событие[[#This Row],[Дата]],H807)","v":"00:00:00"}]
[null,null,null,"  ",null,null,null,{"$f":"IF(Событие[[#This Row],[Место или название компании]]<>C808,Событие[[#This Row],[Дата]],H808)","v":"00:00:00"}]
[null,null,null,"  ",null,null,null,{"$f":"IF(Событие[[#This Row],[Место или название компании]]<>C809,Событие[[#This Row],[Дата]],H809)","v":"00:00:00"}]
[null,null,null,"  ",null,null,null,{"$f":"IF(Событие[[#This Row],[Место или название компании]]<>C810,Событие[[#This Row],[Дата]],H810)","v":"00:00:00"}]
[null,null,null,"  ",null,null,null,{"$f":"IF(Событие[[#This Row],[Место или название компании]]<>C811,Событие[[#This Row],[Дата]],H811)","v":"00:00:00"}]
[null,null,null,"  ",null,null,null,{"$f":"IF(Событие[[#This Row],[Место или название компании]]<>C812,Событие[[#This Row],[Дата]],H812)","v":"00:00:00"}]
[null,null,null,"  ",null,null,null,{"$f":"IF(Событие[[#This Row],[Место или название компании]]<>C813,Событие[[#This Row],[Дата]],H813)","v":"00:00:00"}]
[null,null,null,"  ",null,null,null,{"$f":"IF(Событие[[#This Row],[Место или название компании]]<>C814,Событие[[#This Row],[Дата]],H814)","v":"00:00:00"}]
[null,null,null,{"$f":"IF(E133<>\"\",\"проверка\",IF(F133<>\"\",\"семинар\",\"  \"))","v":"  "},null,null,null,{"$f":"IF(Событие[[#This Row],[Место или название компании]]<>C815,Событие[[#This Row],[Дата]],H815)","v":"00:00:00"}]
[null,null,null,"  ",null,null,null,{"$f":"IF(Событие[[#This Row],[Место или название компании]]<>C816,Событие[[#This Row],[Дата]],H816)","v":"00:00:00"}]
[null,null,null,"  ",null,null,null,{"$f":"IF(Событие[[#This Row],[Место или название компании]]<>C817,Событие[[#This Row],[Дата]],H817)","v":"00:00:00"}]
[null,null,null,"  ",null,null,null,{"$f":"IF(Событие[[#This Row],[Место или название компании]]<>C818,Событие[[#This Row],[Дата]],H818)","v":"00:00:00"}]
[null,null,null,"  ",null,null,null,{"$f":"IF(Событие[[#This Row],[Место или название компании]]<>C819,Событие[[#This Row],[Дата]],H819)","v":"00:00:00"}]
[null,null,null,"  ",null,null,null,{"$f":"IF(Событие[[#This Row],[Место или название компании]]<>C820,Событие[[#This Row],[Дата]],H820)","v":"00:00:00"}]
[null,null,null,"  ",null,null,null,{"$f":"IF(Событие[[#This Row],[Место или название компании]]<>C821,Событие[[#This Row],[Дата]],H821)","v":"00:00:00"}]
[null,null,null,"  ",null,null,null,{"$f":"IF(Событие[[#This Row],[Место или название компании]]<>C822,Событие[[#This Row],[Дата]],H822)","v":"00:00:00"}]
[null,null,null,"  ",null,null,null,{"$f":"IF(Событие[[#This Row],[Место или название компании]]<>C823,Событие[[#This Row],[Дата]],H823)","v":"00:00:00"}]
[null,null,null,"  ",null,null,null,{"$f":"IF(Событие[[#This Row],[Место или название компании]]<>C824,Событие[[#This Row],[Дата]],H824)","v":"00:00:00"}]
[null,null,null,"  ",null,null,null,{"$f":"IF(Событие[[#This Row],[Место или название компании]]<>C825,Событие[[#This Row],[Дата]],H825)","v":"00:00:00"}]
[null,null,null,"  ",null,null,null,{"$f":"IF(Событие[[#This Row],[Место или название компании]]<>C826,Событие[[#This Row],[Дата]],H826)","v":"00:00:00"}]
[null,null,null,"  ",null,null,null,{"$f":"IF(Событие[[#This Row],[Место или название компании]]<>C827,Событие[[#This Row],[Дата]],H827)","v":"00:00:00"}]
[null,null,null,"  ",null,null,null,{"$f":"IF(Событие[[#This Row],[Место или название компании]]<>C828,Событие[[#This Row],[Дата]],H828)","v":"00:00:00"}]
[null,null,null,"  ",null,null,null,{"$f":"IF(Событие[[#This Row],[Место или название компании]]<>C829,Событие[[#This Row],[Дата]],H829)","v":"00:00:00"}]
[null,null,null,"  ",null,null,null,{"$f":"IF(Событие[[#This Row],[Место или название компании]]<>C830,Событие[[#This Row],[Дата]],H830)","v":"00:00:00"}]
[null,null,null,"  ",null,null,null,{"$f":"IF(Событие[[#This Row],[Место или название компании]]<>C831,Событие[[#This Row],[Дата]],H831)","v":"00:00:00"}]
[null,null,null,"  ",null,null,null,{"$f":"IF(Событие[[#This Row],[Место или название компании]]<>C832,Событие[[#This Row],[Дата]],H832)","v":"00:00:00"}]
[null,null,null,"  ",null,null,null,{"$f":"IF(Событие[[#This Row],[Место или название компании]]<>C833,Событие[[#This Row],[Дата]],H833)","v":"00:00:00"}]
[null,null,null,"  ",null,null,null,{"$f":"IF(Событие[[#This Row],[Место или название компании]]<>C834,Событие[[#This Row],[Дата]],H834)","v":"00:00:00"}]
[null,null,null,"  ",null,null,null,{"$f":"IF(Событие[[#This Row],[Место или название компании]]<>C835,Событие[[#This Row],[Дата]],H835)","v":"00:00:00"}]
[null,null,null,"  ",null,null,null,{"$f":"IF(Событие[[#This Row],[Место или название компании]]<>C836,Событие[[#This Row],[Дата]],H836)","v":"00:00:00"}]
[null,null,null,"  ",null,null,null,{"$f":"IF(Событие[[#This Row],[Место или название компании]]<>C837,Событие[[#This Row],[Дата]],H837)","v":"00:00:00"}]
[null,null,null,"  ",null,null,null,{"$f":"IF(Событие[[#This Row],[Место или название компании]]<>C838,Событие[[#This Row],[Дата]],H838)","v":"00:00:00"}]
[null,null,null,"  ",null,null,null,{"$f":"IF(Событие[[#This Row],[Место или название компании]]<>C839,Событие[[#This Row],[Дата]],H839)","v":"00:00:00"}]
[null,null,null,"  ",null,null,null,{"$f":"IF(Событие[[#This Row],[Место или название компании]]<>C840,Событие[[#This Row],[Дата]],H840)","v":"00:00:00"}]
[null,null,null,"  ",null,null,null,{"$f":"IF(Событие[[#This Row],[Место или название компании]]<>C841,Событие[[#This Row],[Дата]],H841)","v":"00:00:00"}]
[null,null,null,"  ",null,null,null,{"$f":"IF(Событие[[#This Row],[Место или название компании]]<>C842,Событие[[#This Row],[Дата]],H842)","v":"00:00:00"}]
[null,null,null,"  ",null,null,null,{"$f":"IF(Событие[[#This Row],[Место или название компании]]<>C843,Событие[[#This Row],[Дата]],H843)","v":"00:00:00"}]
[null,null,null,"  ",null,null,null,{"$f":"IF(Событие[[#This Row],[Место или название компании]]<>C844,Событие[[#This Row],[Дата]],H844)","v":"00:00:00"}]
[null,null,null,"  ",null,null,null,{"$f":"IF(Событие[[#This Row],[Место или название компании]]<>C845,Событие[[#This Row],[Дата]],H845)","v":"00:00:00"}]
[null,null,null,"  ",null,null,null,{"$f":"IF(Событие[[#This Row],[Место или название компании]]<>C846,Событие[[#This Row],[Дата]],H846)","v":"00:00:00"}]
[null,null,null,"  ",null,null,null,{"$f":"IF(Событие[[#This Row],[Место или название компании]]<>C847,Событие[[#This Row],[Дата]],H847)","v":"00:00:00"}]
[null,null,null,"  ",null,null,null,{"$f":"IF(Событие[[#This Row],[Место или название компании]]<>C848,Событие[[#This Row],[Дата]],H848)","v":"00:00:00"}]
[null,null,null,"  ",null,null,null,{"$f":"IF(Событие[[#This Row],[Место или название компании]]<>C849,Событие[[#This Row],[Дата]],H849)","v":"00:00:00"}]
[null,null,null,"  ",null,null,null,{"$f":"IF(Событие[[#This Row],[Место или название компании]]<>C850,Событие[[#This Row],[Дата]],H850)","v":"00:00:00"}]
[null,null,null,"  ",null,null,null,{"$f":"IF(Событие[[#This Row],[Место или название компании]]<>C851,Событие[[#This Row],[Дата]],H851)","v":"00:00:00"}]
[null,null,null,"  ",null,null,null,{"$f":"IF(Событие[[#This Row],[Место или название компании]]<>C852,Событие[[#This Row],[Дата]],H852)","v":"00:00:00"}]
[null,null,null,"  ",null,null,null,{"$f":"IF(Событие[[#This Row],[Место или название компании]]<>C853,Событие[[#This Row],[Дата]],H853)","v":"00:00:00"}]
[null,null,null,"  ",null,null,null,{"$f":"IF(Событие[[#This Row],[Место или название компании]]<>C854,Событие[[#This Row],[Дата]],H854)","v":"00:00:00"}]
[null,null,null,"  ",null,null,null,{"$f":"IF(Событие[[#This Row],[Место или название компании]]<>C855,Событие[[#This Row],[Дата]],H855)","v":"00:00:00"}]
[null,null,null,"  ",null,null,null,{"$f":"IF(Событие[[#This Row],[Место или название компании]]<>C856,Событие[[#This Row],[Дата]],H856)","v":"00:00:00"}]
[null,null,null,"  ",null,null,null,{"$f":"IF(Событие[[#This Row],[Место или название компании]]<>C857,Событие[[#This Row],[Дата]],H857)","v":"00:00:00"}]
[null,null,null,"  ",null,null,null,{"$f":"IF(Событие[[#This Row],[Место или название компании]]<>C858,Событие[[#This Row],[Дата]],H858)","v":"00:00:00"}]
[null,null,null,"  ",null,null,null,{"$f":"IF(Событие[[#This Row],[Место или название компании]]<>C859,Событие[[#This Row],[Дата]],H859)","v":"00:00:00"}]
[null,null,null,"  ",null,null,null,{"$f":"IF(Событие[[#This Row],[Место или название компании]]<>C860,Событие[[#This Row],[Дата]],H860)","v":"00:00:00"}]
[null,null,null,"  ",null,null,null,{"$f":"IF(Событие[[#This Row],[Место или название компании]]<>C861,Событие[[#This Row],[Дата]],H861)","v":"00:00:00"}]
[null,null,null,"  ",null,null,null,{"$f":"IF(Событие[[#This Row],[Место или название компании]]<>C862,Событие[[#This Row],[Дата]],H862)","v":"00:00:00"}]
[null,null,null,"  ",null,null,null,{"$f":"IF(Событие[[#This Row],[Место или название компании]]<>C863,Событие[[#This Row],[Дата]],H863)","v":"00:00:00"}]
[null,null,null,"  ",null,null,null,{"$f":"IF(Событие[[#This Row],[Место или название компании]]<>C864,Событие[[#This Row],[Дата]],H864)","v":"00:00:00"}]
[null,null,null,"  ",null,null,null,{"$f":"IF(Событие[[#This Row],[Место или название компании]]<>C865,Событие[[#This Row],[Дата]],H865)","v":"00:00:00"}]
[null,null,null,"  ",null,null,null,{"$f":"IF(Событие[[#This Row],[Место или название компании]]<>C866,Событие[[#This Row],[Дата]],H866)","v":"00:00:00"}]
[null,null,null,"  ",null,null,null,{"$f":"IF(Событие[[#This Row],[Место или название компании]]<>C867,Событие[[#This Row],[Дата]],H867)","v":"00:00:00"}]
[null,null,null,"  ",null,null,null,{"$f":"IF(Событие[[#This Row],[Место или название компании]]<>C868,Событие[[#This Row],[Дата]],H868)","v":"00:00:00"}]
[null,null,null,"  ",null,null,null,{"$f":"IF(Событие[[#This Row],[Место или название компании]]<>C869,Событие[[#This Row],[Дата]],H869)","v":"00:00:00"}]
[null,null,null,"  ",null,null,null,{"$f":"IF(Событие[[#This Row],[Место или название компании]]<>C870,Событие[[#This Row],[Дата]],H870)","v":"00:00:00"}]
[null,null,null,"  ",null,null,null,{"$f":"IF(Событие[[#This Row],[Место или название компании]]<>C871,Событие[[#This Row],[Дата]],H871)","v":"00:00:00"}]
[null,null,null,"  ",null,null,null,{"$f":"IF(Событие[[#This Row],[Место или название компании]]<>C872,Событие[[#This Row],[Дата]],H872)","v":"00:00:00"}]
[null,null,null,"  ",null,null,null,{"$f":"IF(Событие[[#This Row],[Место или название компании]]<>C873,Событие[[#This Row],[Дата]],H873)","v":"00:00:00"}]
[null,null,null,"  ",null,null,null,{"$f":"IF(Событие[[#This Row],[Место или название компании]]<>C874,Событие[[#This Row],[Дата]],H874)","v":"00:00:00"}]
[null,null,null,"  ",null,null,null,{"$f":"IF(Событие[[#This Row],[Место или название компании]]<>C875,Событие[[#This Row],[Дата]],H875)","v":"00:00:00"}]
[null,null,null,"  ",null,null,null,{"$f":"IF(Событие[[#This Row],[Место или название компании]]<>C876,Событие[[#This Row],[Дата]],H876)","v":"00:00:00"}]
[null,null,null,"  ",null,null,null,{"$f":"IF(Событие[[#This Row],[Место или название компании]]<>C877,Событие[[#This Row],[Дата]],H877)","v":"00:00:00"}]
[null,null,null,"  ",null,null,null,{"$f":"IF(Событие[[#This Row],[Место или название компании]]<>C878,Событие[[#This Row],[Дата]],H878)","v":"00:00:00"}]
[null,null,null,{"$f":"IF(E197<>\"\",\"проверка\",IF(F197<>\"\",\"семинар\",\"  \"))","v":"  "},null,null,null,{"$f":"IF(Событие[[#This Row],[Место или название компании]]<>C879,Событие[[#This Row],[Дата]],H879)","v":"00:00:00"}]
[null,null,null,"  ",null,null,null,{"$f":"IF(Событие[[#This Row],[Место или название компании]]<>C880,Событие[[#This Row],[Дата]],H880)","v":"00:00:00"}]
[null,null,null,"  ",null,null,null,{"$f":"IF(Событие[[#This Row],[Место или название компании]]<>C881,Событие[[#This Row],[Дата]],H881)","v":"00:00:00"}]
[null,null,null,"  ",null,null,null,{"$f":"IF(Событие[[#This Row],[Место или название компании]]<>C882,Событие[[#This Row],[Дата]],H882)","v":"00:00:00"}]
[null,null,null,"  ",null,null,null,{"$f":"IF(Событие[[#This Row],[Место или название компании]]<>C883,Событие[[#This Row],[Дата]],H883)","v":"00:00:00"}]
[null,null,null,"  ",null,null,null,{"$f":"IF(Событие[[#This Row],[Место или название компании]]<>C884,Событие[[#This Row],[Дата]],H884)","v":"00:00:00"}]
[null,null,null,"  ",null,null,null,{"$f":"IF(Событие[[#This Row],[Место или название компании]]<>C885,Событие[[#This Row],[Дата]],H885)","v":"00:00:00"}]
[null,null,null,"  ",null,null,null,{"$f":"IF(Событие[[#This Row],[Место или название компании]]<>C886,Событие[[#This Row],[Дата]],H886)","v":"00:00:00"}]
[null,null,null,"  ",null,null,null,{"$f":"IF(Событие[[#This Row],[Место или название компании]]<>C887,Событие[[#This Row],[Дата]],H887)","v":"00:00:00"}]
[null,null,null,"  ",null,null,null,{"$f":"IF(Событие[[#This Row],[Место или название компании]]<>C888,Событие[[#This Row],[Дата]],H888)","v":"00:00:00"}]
[null,null,null,"  ",null,null,null,{"$f":"IF(Событие[[#This Row],[Место или название компании]]<>C889,Событие[[#This Row],[Дата]],H889)","v":"00:00:00"}]
[null,null,null,"  ",null,null,null,{"$f":"IF(Событие[[#This Row],[Место или название компании]]<>C890,Событие[[#This Row],[Дата]],H890)","v":"00:00:00"}]
[null,null,null,"  ",null,null,null,{"$f":"IF(Событие[[#This Row],[Место или название компании]]<>C891,Событие[[#This Row],[Дата]],H891)","v":"00:00:00"}]
[null,null,null,"  ",null,null,null,{"$f":"IF(Событие[[#This Row],[Место или название компании]]<>C892,Событие[[#This Row],[Дата]],H892)","v":"00:00:00"}]
[null,null,null,"  ",null,null,null,{"$f":"IF(Событие[[#This Row],[Место или название компании]]<>C893,Событие[[#This Row],[Дата]],H893)","v":"00:00:00"}]
[null,null,null,"  ",null,null,null,{"$f":"IF(Событие[[#This Row],[Место или название компании]]<>C894,Событие[[#This Row],[Дата]],H894)","v":"00:00:00"}]
[null,null,null,"  ",null,null,null,{"$f":"IF(Событие[[#This Row],[Место или название компании]]<>C895,Событие[[#This Row],[Дата]],H895)","v":"00:00:00"}]
[null,null,null,"  ",null,null,null,{"$f":"IF(Событие[[#This Row],[Место или название компании]]<>C896,Событие[[#This Row],[Дата]],H896)","v":"00:00:00"}]
[null,null,null,"  ",null,null,null,{"$f":"IF(Событие[[#This Row],[Место или название компании]]<>C897,Событие[[#This Row],[Дата]],H897)","v":"00:00:00"}]
[null,null,null,"  ",null,null,null,{"$f":"IF(Событие[[#This Row],[Место или название компании]]<>C898,Событие[[#This Row],[Дата]],H898)","v":"00:00:00"}]
[null,null,null,"  ",null,null,null,{"$f":"IF(Событие[[#This Row],[Место или название компании]]<>C899,Событие[[#This Row],[Дата]],H899)","v":"00:00:00"}]
[null,null,null,"  ",null,null,null,{"$f":"IF(Событие[[#This Row],[Место или название компании]]<>C900,Событие[[#This Row],[Дата]],H900)","v":"00:00:00"}]
[null,null,null,"  ",null,null,null,{"$f":"IF(Событие[[#This Row],[Место или название компании]]<>C901,Событие[[#This Row],[Дата]],H901)","v":"00:00:00"}]
[null,null,null,"  ",null,null,null,{"$f":"IF(Событие[[#This Row],[Место или название компании]]<>C902,Событие[[#This Row],[Дата]],H902)","v":"00:00:00"}]
[null,null,null,"  ",null,null,null,{"$f":"IF(Событие[[#This Row],[Место или название компании]]<>C903,Событие[[#This Row],[Дата]],H903)","v":"00:00:00"}]
[null,null,null,"  ",null,null,null,{"$f":"IF(Событие[[#This Row],[Место или название компании]]<>C904,Событие[[#This Row],[Дата]],H904)","v":"00:00:00"}]
[null,null,null,"  ",null,null,null,{"$f":"IF(Событие[[#This Row],[Место или название компании]]<>C905,Событие[[#This Row],[Дата]],H905)","v":"00:00:00"}]
[null,null,null,"  ",null,null,null,{"$f":"IF(Событие[[#This Row],[Место или название компании]]<>C906,Событие[[#This Row],[Дата]],H906)","v":"00:00:00"}]
[null,null,null,"  ",null,null,null,{"$f":"IF(Событие[[#This Row],[Место или название компании]]<>C907,Событие[[#This Row],[Дата]],H907)","v":"00:00:00"}]
[null,null,null,"  ",null,null,null,{"$f":"IF(Событие[[#This Row],[Место или название компании]]<>C908,Событие[[#This Row],[Дата]],H908)","v":"00:00:00"}]
[null,null,null,"  ",null,null,null,{"$f":"IF(Событие[[#This Row],[Место или название компании]]<>C909,Событие[[#This Row],[Дата]],H909)","v":"00:00:00"}]
[null,null,null,"  ",null,null,null,{"$f":"IF(Событие[[#This Row],[Место или название компании]]<>C910,Событие[[#This Row],[Дата]],H910)","v":"00:00:00"}]
[null,null,null,"  ",null,null,null,{"$f":"IF(Событие[[#This Row],[Место или название компании]]<>C911,Событие[[#This Row],[Дата]],H911)","v":"00:00:00"}]
[null,null,null,"  ",null,null,null,{"$f":"IF(Событие[[#This Row],[Место или название компании]]<>C912,Событие[[#This Row],[Дата]],H912)","v":"00:00:00"}]
[null,null,null,"  ",null,null,null,{"$f":"IF(Событие[[#This Row],[Место или название компании]]<>C913,Событие[[#This Row],[Дата]],H913)","v":"00:00:00"}]
[null,null,null,"  ",null,null,null,{"$f":"IF(Событие[[#This Row],[Место или название компании]]<>C914,Событие[[#This Row],[Дата]],H914)","v":"00:00:00"}]
[null,null,null,"  ",null,null,null,{"$f":"IF(Событие[[#This Row],[Место или название компании]]<>C915,Событие[[#This Row],[Дата]],H915)","v":"00:00:00"}]
[null,null,null,"  ",null,null,null,{"$f":"IF(Событие[[#This Row],[Место или название компании]]<>C916,Событие[[#This Row],[Дата]],H916)","v":"00:00:00"}]
[null,null,null,"  ",null,null,null,{"$f":"IF(Событие[[#This Row],[Место или название компании]]<>C917,Событие[[#This Row],[Дата]],H917)","v":"00:00:00"}]
[null,null,null,"  ",null,null,null,{"$f":"IF(Событие[[#This Row],[Место или название компании]]<>C918,Событие[[#This Row],[Дата]],H918)","v":"00:00:00"}]
[null,null,null,"  ",null,null,null,{"$f":"IF(Событие[[#This Row],[Место или название компании]]<>C919,Событие[[#This Row],[Дата]],H919)","v":"00:00:00"}]
[null,null,null,"  ",null,null,null,{"$f":"IF(Событие[[#This Row],[Место или название компании]]<>C920,Событие[[#This Row],[Дата]],H920)","v":"00:00:00"}]
[null,null,null,"  ",null,null,null,{"$f":"IF(Событие[[#This Row],[Место или название компании]]<>C921,Событие[[#This Row],[Дата]],H921)","v":"00:00:00"}]
[null,null,null,"  ",null,null,null,{"$f":"IF(Событие[[#This Row],[Место или название компании]]<>C922,Событие[[#This Row],[Дата]],H922)","v":"00:00:00"}]
[null,null,null,"  ",null,null,null,{"$f":"IF(Событие[[#This Row],[Место или название компании]]<>C923,Событие[[#This Row],[Дата]],H923)","v":"00:00:00"}]
[null,null,null,"  ",null,null,null,{"$f":"IF(Событие[[#This Row],[Место или название компании]]<>C924,Событие[[#This Row],[Дата]],H924)","v":"00:00:00"}]
[null,null,null,"  ",null,null,null,{"$f":"IF(Событие[[#This Row],[Место или название компании]]<>C925,Событие[[#This Row],[Дата]],H925)","v":"00:00:00"}]
[null,null,null,"  ",null,null,null,{"$f":"IF(Событие[[#This Row],[Место или название компании]]<>C926,Событие[[#This Row],[Дата]],H926)","v":"00:00:00"}]
[null,null,null,"  ",null,null,null,{"$f":"IF(Событие[[#This Row],[Место или название компании]]<>C927,Событие[[#This Row],[Дата]],H927)","v":"00:00:00"}]
[null,null,null,"  ",null,null,null,{"$f":"IF(Событие[[#This Row],[Место или название компании]]<>C928,Событие[[#This Row],[Дата]],H928)","v":"00:00:00"}]
[null,null,null,"  ",null,null,null,{"$f":"IF(Событие[[#This Row],[Место или название компании]]<>C929,Событие[[#This Row],[Дата]],H929)","v":"00:00:00"}]
[null,null,null,"  ",null,null,null,{"$f":"IF(Событие[[#This Row],[Место или название компании]]<>C930,Событие[[#This Row],[Дата]],H930)","v":"00:00:00"}]
[null,null,null,"  ",null,null,null,{"$f":"IF(Событие[[#This Row],[Место или название компании]]<>C931,Событие[[#This Row],[Дата]],H931)","v":"00:00:00"}]
[null,null,null,"  ",null,null,null,{"$f":"IF(Событие[[#This Row],[Место или название компании]]<>C932,Событие[[#This Row],[Дата]],H932)","v":"00:00:00"}]
[null,null,null,"  ",null,null,null,{"$f":"IF(Событие[[#This Row],[Место или название компании]]<>C933,Событие[[#This Row],[Дата]],H933)","v":"00:00:00"}]
[null,null,null,"  ",null,null,null,{"$f":"IF(Событие[[#This Row],[Место или название компании]]<>C934,Событие[[#This Row],[Дата]],H934)","v":"00:00:00"}]
[null,null,null,"  ",null,null,null,{"$f":"IF(Событие[[#This Row],[Место или название компании]]<>C935,Событие[[#This Row],[Дата]],H935)","v":"00:00:00"}]
[null,null,null,"  ",null,null,null,{"$f":"IF(Событие[[#This Row],[Место или название компании]]<>C936,Событие[[#This Row],[Дата]],H936)","v":"00:00:00"}]
[null,null,null,"  ",null,null,null,{"$f":"IF(Событие[[#This Row],[Место или название компании]]<>C937,Событие[[#This Row],[Дата]],H937)","v":"00:00:00"}]
[null,null,null,"  ",null,null,null,{"$f":"IF(Событие[[#This Row],[Место или название компании]]<>C938,Событие[[#This Row],[Дата]],H938)","v":"00:00:00"}]
[null,null,null,"  ",null,null,null,{"$f":"IF(Событие[[#This Row],[Место или название компании]]<>C939,Событие[[#This Row],[Дата]],H939)","v":"00:00:00"}]
[null,null,null,"  ",null,null,null,{"$f":"IF(Событие[[#This Row],[Место или название компании]]<>C940,Событие[[#This Row],[Дата]],H940)","v":"00:00:00"}]
[null,null,null,"  ",null,null,null,{"$f":"IF(Событие[[#This Row],[Место или название компании]]<>C941,Событие[[#This Row],[Дата]],H941)","v":"00:00:00"}]
[null,null,null,"  ",null,null,null,{"$f":"IF(Событие[[#This Row],[Место или название компании]]<>C942,Событие[[#This Row],[Дата]],H942)","v":"00:00:00"}]
[null,null,null,{"$f":"IF(E261<>\"\",\"проверка\",IF(F261<>\"\",\"семинар\",\"  \"))","v":"  "},null,null,null,{"$f":"IF(Событие[[#This Row],[Место или название компании]]<>C943,Событие[[#This Row],[Дата]],H943)","v":"00:00:00"}]
[null,null,null,"  ",null,null,null,{"$f":"IF(Событие[[#This Row],[Место или название компании]]<>C944,Событие[[#This Row],[Дата]],H944)","v":"00:00:00"}]
[null,null,null,"  ",null,null,null,{"$f":"IF(Событие[[#This Row],[Место или название компании]]<>C945,Событие[[#This Row],[Дата]],H945)","v":"00:00:00"}]
[null,null,null,"  ",null,null,null,{"$f":"IF(Событие[[#This Row],[Место или название компании]]<>C946,Событие[[#This Row],[Дата]],H946)","v":"00:00:00"}]
[null,null,null,"  ",null,null,null,{"$f":"IF(Событие[[#This Row],[Место или название компании]]<>C947,Событие[[#This Row],[Дата]],H947)","v":"00:00:00"}]
[null,null,null,"  ",null,null,null,{"$f":"IF(Событие[[#This Row],[Место или название компании]]<>C948,Событие[[#This Row],[Дата]],H948)","v":"00:00:00"}]
[null,null,null,"  ",null,null,null,{"$f":"IF(Событие[[#This Row],[Место или название компании]]<>C949,Событие[[#This Row],[Дата]],H949)","v":"00:00:00"}]
[null,null,null,"  ",null,null,null,{"$f":"IF(Событие[[#This Row],[Место или название компании]]<>C950,Событие[[#This Row],[Дата]],H950)","v":"00:00:00"}]
[null,null,null,"  ",null,null,null,{"$f":"IF(Событие[[#This Row],[Место или название компании]]<>C951,Событие[[#This Row],[Дата]],H951)","v":"00:00:00"}]
[null,null,null,"  ",null,null,null,{"$f":"IF(Событие[[#This Row],[Место или название компании]]<>C952,Событие[[#This Row],[Дата]],H952)","v":"00:00:00"}]
[null,null,null,"  ",null,null,null,{"$f":"IF(Событие[[#This Row],[Место или название компании]]<>C953,Событие[[#This Row],[Дата]],H953)","v":"00:00:00"}]
[null,null,null,"  ",null,null,null,{"$f":"IF(Событие[[#This Row],[Место или название компании]]<>C954,Событие[[#This Row],[Дата]],H954)","v":"00:00:00"}]
[null,null,null,"  ",null,null,null,{"$f":"IF(Событие[[#This Row],[Место или название компании]]<>C955,Событие[[#This Row],[Дата]],H955)","v":"00:00:00"}]
[null,null,null,"  ",null,null,null,{"$f":"IF(Событие[[#This Row],[Место или название компании]]<>C956,Событие[[#This Row],[Дата]],H956)","v":"00:00:00"}]
[null,null,null,"  ",null,null,null,{"$f":"IF(Событие[[#This Row],[Место или название компании]]<>C957,Событие[[#This Row],[Дата]],H957)","v":"00:00:00"}]
[null,null,null,"  ",null,null,null,{"$f":"IF(Событие[[#This Row],[Место или название компании]]<>C958,Событие[[#This Row],[Дата]],H958)","v":"00:00:00"}]
[null,null,null,"  ",null,null,null,{"$f":"IF(Событие[[#This Row],[Место или название компании]]<>C959,Событие[[#This Row],[Дата]],H959)","v":"00:00:00"}]
[null,null,null,"  ",null,null,null,{"$f":"IF(Событие[[#This Row],[Место или название компании]]<>C960,Событие[[#This Row],[Дата]],H960)","v":"00:00:00"}]
[null,null,null,"  ",null,null,null,{"$f":"IF(Событие[[#This Row],[Место или название компании]]<>C961,Событие[[#This Row],[Дата]],H961)","v":"00:00:00"}]
[null,null,null,"  ",null,null,null,{"$f":"IF(Событие[[#This Row],[Место или название компании]]<>C962,Событие[[#This Row],[Дата]],H962)","v":"00:00:00"}]
[null,null,null,"  ",null,null,null,{"$f":"IF(Событие[[#This Row],[Место или название компании]]<>C963,Событие[[#This Row],[Дата]],H963)","v":"00:00:00"}]
[null,null,null,"  ",null,null,null,{"$f":"IF(Событие[[#This Row],[Место или название компании]]<>C964,Событие[[#This Row],[Дата]],H964)","v":"00:00:00"}]
[null,null,null,"  ",null,null,null,{"$f":"IF(Событие[[#This Row],[Место или название компании]]<>C965,Событие[[#This Row],[Дата]],H965)","v":"00:00:00"}]
[null,null,null,"  ",null,null,null,{"$f":"IF(Событие[[#This Row],[Место или название компании]]<>C966,Событие[[#This Row],[Дата]],H966)","v":"00:00:00"}]
[null,null,null,"  ",null,null,null,{"$f":"IF(Событие[[#This Row],[Место или название компании]]<>C967,Событие[[#This Row],[Дата]],H967)","v":"00:00:00"}]
[null,null,null,"  ",null,null,null,{"$f":"IF(Событие[[#This Row],[Место или название компании]]<>C968,Событие[[#This Row],[Дата]],H968)","v":"00:00:00"}]
[null,null,null,"  ",null,null,null,{"$f":"IF(Событие[[#This Row],[Место или название компании]]<>C969,Событие[[#This Row],[Дата]],H969)","v":"00:00:00"}]
[null,null,null,"  ",null,null,null,{"$f":"IF(Событие[[#This Row],[Место или название компании]]<>C970,Событие[[#This Row],[Дата]],H970)","v":"00:00:00"}]
[null,null,null,"  ",null,null,null,{"$f":"IF(Событие[[#This Row],[Место или название компании]]<>C971,Событие[[#This Row],[Дата]],H971)","v":"00:00:00"}]
[null,null,null,"  ",null,null,null,{"$f":"IF(Событие[[#This Row],[Место или название компании]]<>C972,Событие[[#This Row],[Дата]],H972)","v":"00:00:00"}]
[null,null,null,"  ",null,null,null,{"$f":"IF(Событие[[#This Row],[Место или название компании]]<>C973,Событие[[#This Row],[Дата]],H973)","v":"00:00:00"}]
[null,null,null,"  ",null,null,null,{"$f":"IF(Событие[[#This Row],[Место или название компании]]<>C974,Событие[[#This Row],[Дата]],H974)","v":"00:00:00"}]
[null,null,null,"  ",null,null,null,{"$f":"IF(Событие[[#This Row],[Место или название компании]]<>C975,Событие[[#This Row],[Дата]],H975)","v":"00:00:00"}]
[null,null,null,"  ",null,null,null,{"$f":"IF(Событие[[#This Row],[Место или название компании]]<>C976,Событие[[#This Row],[Дата]],H976)","v":"00:00:00"}]
[null,null,null,"  ",null,null,null,{"$f":"IF(Событие[[#This Row],[Место или название компании]]<>C977,Событие[[#This Row],[Дата]],H977)","v":"00:00:00"}]
[null,null,null,"  ",null,null,null,{"$f":"IF(Событие[[#This Row],[Место или название компании]]<>C978,Событие[[#This Row],[Дата]],H978)","v":"00:00:00"}]
[null,null,null,"  ",null,null,null,{"$f":"IF(Событие[[#This Row],[Место или название компании]]<>C979,Событие[[#This Row],[Дата]],H979)","v":"00:00:00"}]
[null,null,null,"  ",null,null,null,{"$f":"IF(Событие[[#This Row],[Место или название компании]]<>C980,Событие[[#This Row],[Дата]],H980)","v":"00:00:00"}]
[null,null,null,"  ",null,null,null,{"$f":"IF(Событие[[#This Row],[Место или название компании]]<>C981,Событие[[#This Row],[Дата]],H981)","v":"00:00:00"}]
[null,null,null,"  ",null,null,null,{"$f":"IF(Событие[[#This Row],[Место или название компании]]<>C982,Событие[[#This Row],[Дата]],H982)","v":"00:00:00"}]
[null,null,null,"  ",null,null,null,{"$f":"IF(Событие[[#This Row],[Место или название компании]]<>C983,Событие[[#This Row],[Дата]],H983)","v":"00:00:00"}]
[null,null,null,"  ",null,null,null,{"$f":"IF(Событие[[#This Row],[Место или название компании]]<>C984,Событие[[#This Row],[Дата]],H984)","v":"00:00:00"}]
[null,null,null,"  ",null,null,null,{"$f":"IF(Событие[[#This Row],[Место или название компании]]<>C985,Событие[[#This Row],[Дата]],H985)","v":"00:00:00"}]
[null,null,null,"  ",null,null,null,{"$f":"IF(Событие[[#This Row],[Место или название компании]]<>C986,Событие[[#This Row],[Дата]],H986)","v":"00:00:00"}]
[null,null,null,"  ",null,null,null,{"$f":"IF(Событие[[#This Row],[Место или название компании]]<>C987,Событие[[#This Row],[Дата]],H987)","v":"00:00:00"}]
[null,null,null,"  ",null,null,null,{"$f":"IF(Событие[[#This Row],[Место или название компании]]<>C988,Событие[[#This Row],[Дата]],H988)","v":"00:00:00"}]
[null,null,null,"  ",null,null,null,{"$f":"IF(Событие[[#This Row],[Место или название компании]]<>C989,Событие[[#This Row],[Дата]],H989)","v":"00:00:00"}]
[null,null,null,"  ",null,null,null,{"$f":"IF(Событие[[#This Row],[Место или название компании]]<>C990,Событие[[#This Row],[Дата]],H990)","v":"00:00:00"}]
[null,null,null,"  ",null,null,null,{"$f":"IF(Событие[[#This Row],[Место или название компании]]<>C991,Событие[[#This Row],[Дата]],H991)","v":"00:00:00"}]
[null,null,null,"  ",null,null,null,{"$f":"IF(Событие[[#This Row],[Место или название компании]]<>C992,Событие[[#This Row],[Дата]],H992)","v":"00:00:00"}]
[null,null,null,"  ",null,null,null,{"$f":"IF(Событие[[#This Row],[Место или название компании]]<>C993,Событие[[#This Row],[Дата]],H993)","v":"00:00:00"}]
[null,null,null,"  ",null,null,null,{"$f":"IF(Событие[[#This Row],[Место или название компании]]<>C994,Событие[[#This Row],[Дата]],H994)","v":"00:00:00"}]
[null,null,null,"  ",null,null,null,{"$f":"IF(Событие[[#This Row],[Место или название компании]]<>C995,Событие[[#This Row],[Дата]],H995)","v":"00:00:00"}]
[null,null,null,"  ",null,null,null,{"$f":"IF(Событие[[#This Row],[Место или название компании]]<>C996,Событие[[#This Row],[Дата]],H996)","v":"00:00:00"}]
[null,null,null,"  ",null,null,null,{"$f":"IF(Событие[[#This Row],[Место или название компании]]<>C997,Событие[[#This Row],[Дата]],H997)","v":"00:00:00"}]
[null,null,null,"  ",null,null,null,{"$f":"IF(Событие[[#This Row],[Место или название компании]]<>C998,Событие[[#This Row],[Дата]],H998)","v":"00:00:00"}]
[null,null,null,"  ",null,null,null,{"$f":"IF(Событие[[#This Row],[Место или название компании]]<>C999,Событие[[#This Row],[Дата]],H999)","v":"00:00:00"}]
[null,null,null,"  ",null,null,null,{"$f":"IF(Событие[[#This Row],[Место или название компании]]<>C1000,Событие[[#This Row],[Дата]],H1000)","v":"00:00:00"}]
[null,null,null,"  ",null,null,null,{"$f":"IF(Событие[[#This Row],[Место или название компании]]<>C1001,Событие[[#This Row],[Дата]],H1001)","v":"00:00:00"}]
[null,null,null,"  ",null,null,null,{"$f":"IF(Событие[[#This Row],[Место или название компании]]<>C1002,Событие[[#This Row],[Дата]],H1002)","v":"00:00:00"}]
[null,null,null,"  ",null,null,null,{"$f":"IF(Событие[[#This Row],[Место или название компании]]<>C1003,Событие[[#This Row],[Дата]],H1003)","v":"00:00:00"}]
[null,null,null,"  ",null,null,null,{"$f":"IF(Событие[[#This Row],[Место или название компании]]<>C1004,Событие[[#This Row],[Дата]],H1004)","v":"00:00:00"}]
[null,null,null,"  ",null,null,null,{"$f":"IF(Событие[[#This Row],[Место или название компании]]<>C1005,Событие[[#This Row],[Дата]],H1005)","v":"00:00:00"}]
[null,null,null,"  ",null,null,null,{"$f":"IF(Событие[[#This Row],[Место или название компании]]<>C1006,Событие[[#This Row],[Дата]],H1006)","v":"00:00:00"}]
[null,null,null,{"$f":"IF(E325<>\"\",\"проверка\",IF(F325<>\"\",\"семинар\",\"  \"))","v":"  "},null,null,null,{"$f":"IF(Событие[[#This Row],[Место или название компании]]<>C1007,Событие[[#This Row],[Дата]],H1007)","v":"00:00:00"}]
[null,null,null,"  ",null,null,null,{"$f":"IF(Событие[[#This Row],[Место или название компании]]<>C1008,Событие[[#This Row],[Дата]],H1008)","v":"00:00:00"}]
[null,null,null,"  ",null,null,null,{"$f":"IF(Событие[[#This Row],[Место или название компании]]<>C1009,Событие[[#This Row],[Дата]],H1009)","v":"00:00:00"}]
[null,null,null,"  ",null,null,null,{"$f":"IF(Событие[[#This Row],[Место или название компании]]<>C1010,Событие[[#This Row],[Дата]],H1010)","v":"00:00:00"}]
[null,null,null,"  ",null,null,null,{"$f":"IF(Событие[[#This Row],[Место или название компании]]<>C1011,Событие[[#This Row],[Дата]],H1011)","v":"00:00:00"}]
[null,null,null,"  ",null,null,null,{"$f":"IF(Событие[[#This Row],[Место или название компании]]<>C1012,Событие[[#This Row],[Дата]],H1012)","v":"00:00:00"}]
[null,null,null,"  ",null,null,null,{"$f":"IF(Событие[[#This Row],[Место или название компании]]<>C1013,Событие[[#This Row],[Дата]],H1013)","v":"00:00:00"}]
[null,null,null,"  ",null,null,null,{"$f":"IF(Событие[[#This Row],[Место или название компании]]<>C1014,Событие[[#This Row],[Дата]],H1014)","v":"00:00:00"}]
[null,null,null,"  ",null,null,null,{"$f":"IF(Событие[[#This Row],[Место или название компании]]<>C1015,Событие[[#This Row],[Дата]],H1015)","v":"00:00:00"}]
[null,null,null,"  ",null,null,null,{"$f":"IF(Событие[[#This Row],[Место или название компании]]<>C1016,Событие[[#This Row],[Дата]],H1016)","v":"00:00:00"}]
[null,null,null,"  ",null,null,null,{"$f":"IF(Событие[[#This Row],[Место или название компании]]<>C1017,Событие[[#This Row],[Дата]],H1017)","v":"00:00:00"}]
[null,null,null,"  ",null,null,null,{"$f":"IF(Событие[[#This Row],[Место или название компании]]<>C1018,Событие[[#This Row],[Дата]],H1018)","v":"00:00:00"}]
[null,null,null,"  ",null,null,null,{"$f":"IF(Событие[[#This Row],[Место или название компании]]<>C1019,Событие[[#This Row],[Дата]],H1019)","v":"00:00:00"}]
[null,null,null,"  ",null,null,null,{"$f":"IF(Событие[[#This Row],[Место или название компании]]<>C1020,Событие[[#This Row],[Дата]],H1020)","v":"00:00:00"}]
[null,null,null,"  ",null,null,null,{"$f":"IF(Событие[[#This Row],[Место или название компании]]<>C1021,Событие[[#This Row],[Дата]],H1021)","v":"00:00:00"}]
[null,null,null,"  ",null,null,null,{"$f":"IF(Событие[[#This Row],[Место или название компании]]<>C1022,Событие[[#This Row],[Дата]],H1022)","v":"00:00:00"}]
[null,null,null,"  ",null,null,null,{"$f":"IF(Событие[[#This Row],[Место или название компании]]<>C1023,Событие[[#This Row],[Дата]],H1023)","v":"00:00:00"}]
[null,null,null,"  ",null,null,null,{"$f":"IF(Событие[[#This Row],[Место или название компании]]<>C1024,Событие[[#This Row],[Дата]],H1024)","v":"00:00:00"}]
[null,null,null,"  ",null,null,null,{"$f":"IF(Событие[[#This Row],[Место или название компании]]<>C1025,Событие[[#This Row],[Дата]],H1025)","v":"00:00:00"}]
[null,null,null,"  ",null,null,null,{"$f":"IF(Событие[[#This Row],[Место или название компании]]<>C1026,Событие[[#This Row],[Дата]],H1026)","v":"00:00:00"}]
[null,null,null,"  ",null,null,null,{"$f":"IF(Событие[[#This Row],[Место или название компании]]<>C1027,Событие[[#This Row],[Дата]],H1027)","v":"00:00:00"}]
[null,null,null,"  ",null,null,null,{"$f":"IF(Событие[[#This Row],[Место или название компании]]<>C1028,Событие[[#This Row],[Дата]],H1028)","v":"00:00:00"}]
[null,null,null,"  ",null,null,null,{"$f":"IF(Событие[[#This Row],[Место или название компании]]<>C1029,Событие[[#This Row],[Дата]],H1029)","v":"00:00:00"}]
[null,null,null,"  ",null,null,null,{"$f":"IF(Событие[[#This Row],[Место или название компании]]<>C1030,Событие[[#This Row],[Дата]],H1030)","v":"00:00:00"}]
[null,null,null,"  ",null,null,null,{"$f":"IF(Событие[[#This Row],[Место или название компании]]<>C1031,Событие[[#This Row],[Дата]],H1031)","v":"00:00:00"}]
[null,null,null,"  ",null,null,null,{"$f":"IF(Событие[[#This Row],[Место или название компании]]<>C1032,Событие[[#This Row],[Дата]],H1032)","v":"00:00:00"}]
[null,null,null,"  ",null,null,null,{"$f":"IF(Событие[[#This Row],[Место или название компании]]<>C1033,Событие[[#This Row],[Дата]],H1033)","v":"00:00:00"}]
[null,null,null,"  ",null,null,null,{"$f":"IF(Событие[[#This Row],[Место или название компании]]<>C1034,Событие[[#This Row],[Дата]],H1034)","v":"00:00:00"}]
[null,null,null,"  ",null,null,null,{"$f":"IF(Событие[[#This Row],[Место или название компании]]<>C1035,Событие[[#This Row],[Дата]],H1035)","v":"00:00:00"}]
[null,null,null,"  ",null,null,null,{"$f":"IF(Событие[[#This Row],[Место или название компании]]<>C1036,Событие[[#This Row],[Дата]],H1036)","v":"00:00:00"}]
[null,null,null,"  ",null,null,null,{"$f":"IF(Событие[[#This Row],[Место или название компании]]<>C1037,Событие[[#This Row],[Дата]],H1037)","v":"00:00:00"}]
[null,null,null,"  ",null,null,null,{"$f":"IF(Событие[[#This Row],[Место или название компании]]<>C1038,Событие[[#This Row],[Дата]],H1038)","v":"00:00:00"}]
[null,null,null,"  ",null,null,null,{"$f":"IF(Событие[[#This Row],[Место или название компании]]<>C1039,Событие[[#This Row],[Дата]],H1039)","v":"00:00:00"}]
[null,null,null,"  ",null,null,null,{"$f":"IF(Событие[[#This Row],[Место или название компании]]<>C1040,Событие[[#This Row],[Дата]],H1040)","v":"00:00:00"}]
[null,null,null,"  ",null,null,null,{"$f":"IF(Событие[[#This Row],[Место или название компании]]<>C1041,Событие[[#This Row],[Дата]],H1041)","v":"00:00:00"}]
[null,null,null,"  ",null,null,null,{"$f":"IF(Событие[[#This Row],[Место или название компании]]<>C1042,Событие[[#This Row],[Дата]],H1042)","v":"00:00:00"}]
[null,null,null,"  ",null,null,null,{"$f":"IF(Событие[[#This Row],[Место или название компании]]<>C1043,Событие[[#This Row],[Дата]],H1043)","v":"00:00:00"}]
[null,null,null,"  ",null,null,null,{"$f":"IF(Событие[[#This Row],[Место или название компании]]<>C1044,Событие[[#This Row],[Дата]],H1044)","v":"00:00:00"}]
[null,null,null,"  ",null,null,null,{"$f":"IF(Событие[[#This Row],[Место или название компании]]<>C1045,Событие[[#This Row],[Дата]],H1045)","v":"00:00:00"}]
[null,null,null,"  ",null,null,null,{"$f":"IF(Событие[[#This Row],[Место или название компании]]<>C1046,Событие[[#This Row],[Дата]],H1046)","v":"00:00:00"}]
[null,null,null,"  ",null,null,null,{"$f":"IF(Событие[[#This Row],[Место или название компании]]<>C1047,Событие[[#This Row],[Дата]],H1047)","v":"00:00:00"}]
[null,null,null,"  ",null,null,null,{"$f":"IF(Событие[[#This Row],[Место или название компании]]<>C1048,Событие[[#This Row],[Дата]],H1048)","v":"00:00:00"}]
[null,null,null,"  ",null,null,null,{"$f":"IF(Событие[[#This Row],[Место или название компании]]<>C1049,Событие[[#This Row],[Дата]],H1049)","v":"00:00:00"}]
[null,null,null,"  ",null,null,null,{"$f":"IF(Событие[[#This Row],[Место или название компании]]<>C1050,Событие[[#This Row],[Дата]],H1050)","v":"00:00:00"}]
[null,null,null,"  ",null,null,null,{"$f":"IF(Событие[[#This Row],[Место или название компании]]<>C1051,Событие[[#This Row],[Дата]],H1051)","v":"00:00:00"}]
[null,null,null,"  ",null,null,null,{"$f":"IF(Событие[[#This Row],[Место или название компании]]<>C1052,Событие[[#This Row],[Дата]],H1052)","v":"00:00:00"}]
[null,null,null,"  ",null,null,null,{"$f":"IF(Событие[[#This Row],[Место или название компании]]<>C1053,Событие[[#This Row],[Дата]],H1053)","v":"00:00:00"}]
[null,null,null,"  ",null,null,null,{"$f":"IF(Событие[[#This Row],[Место или название компании]]<>C1054,Событие[[#This Row],[Дата]],H1054)","v":"00:00:00"}]
[null,null,null,"  ",null,null,null,{"$f":"IF(Событие[[#This Row],[Место или название компании]]<>C1055,Событие[[#This Row],[Дата]],H1055)","v":"00:00:00"}]
[null,null,null,"  ",null,null,null,{"$f":"IF(Событие[[#This Row],[Место или название компании]]<>C1056,Событие[[#This Row],[Дата]],H1056)","v":"00:00:00"}]
[null,null,null,"  ",null,null,null,{"$f":"IF(Событие[[#This Row],[Место или название компании]]<>C1057,Событие[[#This Row],[Дата]],H1057)","v":"00:00:00"}]
[null,null,null,"  ",null,null,null,{"$f":"IF(Событие[[#This Row],[Место или название компании]]<>C1058,Событие[[#This Row],[Дата]],H1058)","v":"00:00:00"}]
[null,null,null,"  ",null,null,null,{"$f":"IF(Событие[[#This Row],[Место или название компании]]<>C1059,Событие[[#This Row],[Дата]],H1059)","v":"00:00:00"}]
[null,null,null,"  ",null,null,null,{"$f":"IF(Событие[[#This Row],[Место или название компании]]<>C1060,Событие[[#This Row],[Дата]],H1060)","v":"00:00:00"}]
[null,null,null,"  ",null,null,null,{"$f":"IF(Событие[[#This Row],[Место или название компании]]<>C1061,Событие[[#This Row],[Дата]],H1061)","v":"00:00:00"}]
[null,null,null,"  ",null,null,null,{"$f":"IF(Событие[[#This Row],[Место или название компании]]<>C1062,Событие[[#This Row],[Дата]],H1062)","v":"00:00:00"}]
[null,null,null,"  ",null,null,null,{"$f":"IF(Событие[[#This Row],[Место или название компании]]<>C1063,Событие[[#This Row],[Дата]],H1063)","v":"00:00:00"}]
[null,null,null,"  ",null,null,null,{"$f":"IF(Событие[[#This Row],[Место или название компании]]<>C1064,Событие[[#This Row],[Дата]],H1064)","v":"00:00:00"}]
[null,null,null,"  ",null,null,null,{"$f":"IF(Событие[[#This Row],[Место или название компании]]<>C1065,Событие[[#This Row],[Дата]],H1065)","v":"00:00:00"}]
[null,null,null,"  ",null,null,null,{"$f":"IF(Событие[[#This Row],[Место или название компании]]<>C1066,Событие[[#This Row],[Дата]],H1066)","v":"00:00:00"}]
[null,null,null,"  ",null,null,null,{"$f":"IF(Событие[[#This Row],[Место или название компании]]<>C1067,Событие[[#This Row],[Дата]],H1067)","v":"00:00:00"}]
[null,null,null,"  ",null,null,null,{"$f":"IF(Событие[[#This Row],[Место или название компании]]<>C1068,Событие[[#This Row],[Дата]],H1068)","v":"00:00:00"}]
[null,null,null,"  ",null,null,null,{"$f":"IF(Событие[[#This Row],[Место или название компании]]<>C1069,Событие[[#This Row],[Дата]],H1069)","v":"00:00:00"}]
[null,null,null,"  ",null,null,null,{"$f":"IF(Событие[[#This Row],[Место или название компании]]<>C1070,Событие[[#This Row],[Дата]],H1070)","v":"00:00:00"}]
[null,null,null,{"$f":"IF(E389<>\"\",\"проверка\",IF(F389<>\"\",\"семинар\",\"  \"))","v":"  "},null,null,null,{"$f":"IF(Событие[[#This Row],[Место или название компании]]<>C1071,Событие[[#This Row],[Дата]],H1071)","v":"00:00:00"}]
[null,null,null,"  ",null,null,null,{"$f":"IF(Событие[[#This Row],[Место или название компании]]<>C1072,Событие[[#This Row],[Дата]],H1072)","v":"00:00:00"}]
[null,null,null,"  ",null,null,null,{"$f":"IF(Событие[[#This Row],[Место или название компании]]<>C1073,Событие[[#This Row],[Дата]],H1073)","v":"00:00:00"}]
[null,null,null,"  ",null,null,null,{"$f":"IF(Событие[[#This Row],[Место или название компании]]<>C1074,Событие[[#This Row],[Дата]],H1074)","v":"00:00:00"}]
[null,null,null,"  ",null,null,null,{"$f":"IF(Событие[[#This Row],[Место или название компании]]<>C1075,Событие[[#This Row],[Дата]],H1075)","v":"00:00:00"}]
[null,null,null,"  ",null,null,null,{"$f":"IF(Событие[[#This Row],[Место или название компании]]<>C1076,Событие[[#This Row],[Дата]],H1076)","v":"00:00:00"}]
[null,null,null,"  ",null,null,null,{"$f":"IF(Событие[[#This Row],[Место или название компании]]<>C1077,Событие[[#This Row],[Дата]],H1077)","v":"00:00:00"}]
[null,null,null,"  ",null,null,null,{"$f":"IF(Событие[[#This Row],[Место или название компании]]<>C1078,Событие[[#This Row],[Дата]],H1078)","v":"00:00:00"}]
[null,null,null,"  ",null,null,null,{"$f":"IF(Событие[[#This Row],[Место или название компании]]<>C1079,Событие[[#This Row],[Дата]],H1079)","v":"00:00:00"}]
[null,null,null,"  ",null,null,null,{"$f":"IF(Событие[[#This Row],[Место или название компании]]<>C1080,Событие[[#This Row],[Дата]],H1080)","v":"00:00:00"}]
[null,null,null,"  ",null,null,null,{"$f":"IF(Событие[[#This Row],[Место или название компании]]<>C1081,Событие[[#This Row],[Дата]],H1081)","v":"00:00:00"}]
[null,null,null,"  ",null,null,null,{"$f":"IF(Событие[[#This Row],[Место или название компании]]<>C1082,Событие[[#This Row],[Дата]],H1082)","v":"00:00:00"}]
[null,null,null,"  ",null,null,null,{"$f":"IF(Событие[[#This Row],[Место или название компании]]<>C1083,Событие[[#This Row],[Дата]],H1083)","v":"00:00:00"}]
[null,null,null,"  ",null,null,null,{"$f":"IF(Событие[[#This Row],[Место или название компании]]<>C1084,Событие[[#This Row],[Дата]],H1084)","v":"00:00:00"}]
[null,null,null,"  ",null,null,null,{"$f":"IF(Событие[[#This Row],[Место или название компании]]<>C1085,Событие[[#This Row],[Дата]],H1085)","v":"00:00:00"}]
[null,null,null,"  ",null,null,null,{"$f":"IF(Событие[[#This Row],[Место или название компании]]<>C1086,Событие[[#This Row],[Дата]],H1086)","v":"00:00:00"}]
[null,null,null,"  ",null,null,null,{"$f":"IF(Событие[[#This Row],[Место или название компании]]<>C1087,Событие[[#This Row],[Дата]],H1087)","v":"00:00:00"}]
[null,null,null,"  ",null,null,null,{"$f":"IF(Событие[[#This Row],[Место или название компании]]<>C1088,Событие[[#This Row],[Дата]],H1088)","v":"00:00:00"}]
[null,null,null,"  ",null,null,null,{"$f":"IF(Событие[[#This Row],[Место или название компании]]<>C1089,Событие[[#This Row],[Дата]],H1089)","v":"00:00:00"}]
[null,null,null,"  ",null,null,null,{"$f":"IF(Событие[[#This Row],[Место или название компании]]<>C1090,Событие[[#This Row],[Дата]],H1090)","v":"00:00:00"}]
[null,null,null,"  ",null,null,null,{"$f":"IF(Событие[[#This Row],[Место или название компании]]<>C1091,Событие[[#This Row],[Дата]],H1091)","v":"00:00:00"}]
[null,null,null,"  ",null,null,null,{"$f":"IF(Событие[[#This Row],[Место или название компании]]<>C1092,Событие[[#This Row],[Дата]],H1092)","v":"00:00:00"}]
[null,null,null,"  ",null,null,null,{"$f":"IF(Событие[[#This Row],[Место или название компании]]<>C1093,Событие[[#This Row],[Дата]],H1093)","v":"00:00:00"}]
[null,null,null,"  ",null,null,null,{"$f":"IF(Событие[[#This Row],[Место или название компании]]<>C1094,Событие[[#This Row],[Дата]],H1094)","v":"00:00:00"}]
[null,null,null,"  ",null,null,null,{"$f":"IF(Событие[[#This Row],[Место или название компании]]<>C1095,Событие[[#This Row],[Дата]],H1095)","v":"00:00:00"}]
[null,null,null,"  ",null,null,null,{"$f":"IF(Событие[[#This Row],[Место или название компании]]<>C1096,Событие[[#This Row],[Дата]],H1096)","v":"00:00:00"}]
[null,null,null,"  ",null,null,null,{"$f":"IF(Событие[[#This Row],[Место или название компании]]<>C1097,Событие[[#This Row],[Дата]],H1097)","v":"00:00:00"}]
[null,null,null,"  ",null,null,null,{"$f":"IF(Событие[[#This Row],[Место или название компании]]<>C1098,Событие[[#This Row],[Дата]],H1098)","v":"00:00:00"}]
[null,null,null,"  ",null,null,null,{"$f":"IF(Событие[[#This Row],[Место или название компании]]<>C1099,Событие[[#This Row],[Дата]],H1099)","v":"00:00:00"}]
[null,null,null,"  ",null,null,null,{"$f":"IF(Событие[[#This Row],[Место или название компании]]<>C1100,Событие[[#This Row],[Дата]],H1100)","v":"00:00:00"}]
[null,null,null,"  ",null,null,null,{"$f":"IF(Событие[[#This Row],[Место или название компании]]<>C1101,Событие[[#This Row],[Дата]],H1101)","v":"00:00:00"}]
[null,null,null,"  ",null,null,null,{"$f":"IF(Событие[[#This Row],[Место или название компании]]<>C1102,Событие[[#This Row],[Дата]],H1102)","v":"00:00:00"}]
[null,null,null,"  ",null,null,null,{"$f":"IF(Событие[[#This Row],[Место или название компании]]<>C1103,Событие[[#This Row],[Дата]],H1103)","v":"00:00:00"}]
[null,null,null,"  ",null,null,null,{"$f":"IF(Событие[[#This Row],[Место или название компании]]<>C1104,Событие[[#This Row],[Дата]],H1104)","v":"00:00:00"}]
[null,null,null,"  ",null,null,null,{"$f":"IF(Событие[[#This Row],[Место или название компании]]<>C1105,Событие[[#This Row],[Дата]],H1105)","v":"00:00:00"}]
[null,null,null,"  ",null,null,null,{"$f":"IF(Событие[[#This Row],[Место или название компании]]<>C1106,Событие[[#This Row],[Дата]],H1106)","v":"00:00:00"}]
[null,null,null,"  ",null,null,null,{"$f":"IF(Событие[[#This Row],[Место или название компании]]<>C1107,Событие[[#This Row],[Дата]],H1107)","v":"00:00:00"}]
[null,null,null,"  ",null,null,null,{"$f":"IF(Событие[[#This Row],[Место или название компании]]<>C1108,Событие[[#This Row],[Дата]],H1108)","v":"00:00:00"}]
[null,null,null,"  ",null,null,null,{"$f":"IF(Событие[[#This Row],[Место или название компании]]<>C1109,Событие[[#This Row],[Дата]],H1109)","v":"00:00:00"}]
[null,null,null,"  ",null,null,null,{"$f":"IF(Событие[[#This Row],[Место или название компании]]<>C1110,Событие[[#This Row],[Дата]],H1110)","v":"00:00:00"}]
[null,null,null,"  ",null,null,null,{"$f":"IF(Событие[[#This Row],[Место или название компании]]<>C1111,Событие[[#This Row],[Дата]],H1111)","v":"00:00:00"}]
[null,null,null,"  ",null,null,null,{"$f":"IF(Событие[[#This Row],[Место или название компании]]<>C1112,Событие[[#This Row],[Дата]],H1112)","v":"00:00:00"}]
[null,null,null,"  ",null,null,null,{"$f":"IF(Событие[[#This Row],[Место или название компании]]<>C1113,Событие[[#This Row],[Дата]],H1113)","v":"00:00:00"}]
[null,null,null,"  ",null,null,null,{"$f":"IF(Событие[[#This Row],[Место или название компании]]<>C1114,Событие[[#This Row],[Дата]],H1114)","v":"00:00:00"}]
[null,null,null,"  ",null,null,null,{"$f":"IF(Событие[[#This Row],[Место или название компании]]<>C1115,Событие[[#This Row],[Дата]],H1115)","v":"00:00:00"}]
[null,null,null,"  ",null,null,null,{"$f":"IF(Событие[[#This Row],[Место или название компании]]<>C1116,Событие[[#This Row],[Дата]],H1116)","v":"00:00:00"}]
[null,null,null,"  ",null,null,null,{"$f":"IF(Событие[[#This Row],[Место или название компании]]<>C1117,Событие[[#This Row],[Дата]],H1117)","v":"00:00:00"}]
[null,null,null,"  ",null,null,null,{"$f":"IF(Событие[[#This Row],[Место или название компании]]<>C1118,Событие[[#This Row],[Дата]],H1118)","v":"00:00:00"}]
[null,null,null,"  ",null,null,null,{"$f":"IF(Событие[[#This Row],[Место или название компании]]<>C1119,Событие[[#This Row],[Дата]],H1119)","v":"00:00:00"}]
[null,null,null,"  ",null,null,null,{"$f":"IF(Событие[[#This Row],[Место или название компании]]<>C1120,Событие[[#This Row],[Дата]],H1120)","v":"00:00:00"}]
[null,null,null,"  ",null,null,null,{"$f":"IF(Событие[[#This Row],[Место или название компании]]<>C1121,Событие[[#This Row],[Дата]],H1121)","v":"00:00:00"}]
[null,null,null,"  ",null,null,null,{"$f":"IF(Событие[[#This Row],[Место или название компании]]<>C1122,Событие[[#This Row],[Дата]],H1122)","v":"00:00:00"}]
[null,null,null,"  ",null,null,null,{"$f":"IF(Событие[[#This Row],[Место или название компании]]<>C1123,Событие[[#This Row],[Дата]],H1123)","v":"00:00:00"}]
[null,null,null,"  ",null,null,null,{"$f":"IF(Событие[[#This Row],[Место или название компании]]<>C1124,Событие[[#This Row],[Дата]],H1124)","v":"00:00:00"}]
[null,null,null,"  ",null,null,null,{"$f":"IF(Событие[[#This Row],[Место или название компании]]<>C1125,Событие[[#This Row],[Дата]],H1125)","v":"00:00:00"}]
[null,null,null,"  ",null,null,null,{"$f":"IF(Событие[[#This Row],[Место или название компании]]<>C1126,Событие[[#This Row],[Дата]],H1126)","v":"00:00:00"}]
[null,null,null,"  ",null,null,null,{"$f":"IF(Событие[[#This Row],[Место или название компании]]<>C1127,Событие[[#This Row],[Дата]],H1127)","v":"00:00:00"}]
[null,null,null,"  ",null,null,null,{"$f":"IF(Событие[[#This Row],[Место или название компании]]<>C1128,Событие[[#This Row],[Дата]],H1128)","v":"00:00:00"}]
[null,null,null,"  ",null,null,null,{"$f":"IF(Событие[[#This Row],[Место или название компании]]<>C1129,Событие[[#This Row],[Дата]],H1129)","v":"00:00:00"}]
[null,null,null,"  ",null,null,null,{"$f":"IF(Событие[[#This Row],[Место или название компании]]<>C1130,Событие[[#This Row],[Дата]],H1130)","v":"00:00:00"}]
[null,null,null,"  ",null,null,null,{"$f":"IF(Событие[[#This Row],[Место или название компании]]<>C1131,Событие[[#This Row],[Дата]],H1131)","v":"00:00:00"}]
[null,null,null,"  ",null,null,null,{"$f":"IF(Событие[[#This Row],[Место или название компании]]<>C1132,Событие[[#This Row],[Дата]],H1132)","v":"00:00:00"}]
[null,null,null,"  ",null,null,null,{"$f":"IF(Событие[[#This Row],[Место или название компании]]<>C1133,Событие[[#This Row],[Дата]],H1133)","v":"00:00:00"}]
[null,null,null,"  ",null,null,null,{"$f":"IF(Событие[[#This Row],[Место или название компании]]<>C1134,Событие[[#This Row],[Дата]],H1134)","v":"00:00:00"}]
[null,null,null,{"$f":"IF(E453<>\"\",\"проверка\",IF(F453<>\"\",\"семинар\",\"  \"))","v":"  "},null,null,null,{"$f":"IF(Событие[[#This Row],[Место или название компании]]<>C1135,Событие[[#This Row],[Дата]],H1135)","v":"00:00:00"}]
[null,null,null,"  ",null,null,null,{"$f":"IF(Событие[[#This Row],[Место или название компании]]<>C1136,Событие[[#This Row],[Дата]],H1136)","v":"00:00:00"}]
[null,null,null,"  ",null,null,null,{"$f":"IF(Событие[[#This Row],[Место или название компании]]<>C1137,Событие[[#This Row],[Дата]],H1137)","v":"00:00:00"}]
[null,null,null,"  ",null,null,null,{"$f":"IF(Событие[[#This Row],[Место или название компании]]<>C1138,Событие[[#This Row],[Дата]],H1138)","v":"00:00:00"}]
[null,null,null,"  ",null,null,null,{"$f":"IF(Событие[[#This Row],[Место или название компании]]<>C1139,Событие[[#This Row],[Дата]],H1139)","v":"00:00:00"}]
[null,null,null,"  ",null,null,null,{"$f":"IF(Событие[[#This Row],[Место или название компании]]<>C1140,Событие[[#This Row],[Дата]],H1140)","v":"00:00:00"}]
[null,null,null,"  ",null,null,null,{"$f":"IF(Событие[[#This Row],[Место или название компании]]<>C1141,Событие[[#This Row],[Дата]],H1141)","v":"00:00:00"}]
[null,null,null,"  ",null,null,null,{"$f":"IF(Событие[[#This Row],[Место или название компании]]<>C1142,Событие[[#This Row],[Дата]],H1142)","v":"00:00:00"}]
[null,null,null,"  ",null,null,null,{"$f":"IF(Событие[[#This Row],[Место или название компании]]<>C1143,Событие[[#This Row],[Дата]],H1143)","v":"00:00:00"}]
[null,null,null,"  ",null,null,null,{"$f":"IF(Событие[[#This Row],[Место или название компании]]<>C1144,Событие[[#This Row],[Дата]],H1144)","v":"00:00:00"}]
[null,null,null,"  ",null,null,null,{"$f":"IF(Событие[[#This Row],[Место или название компании]]<>C1145,Событие[[#This Row],[Дата]],H1145)","v":"00:00:00"}]
[null,null,null,"  ",null,null,null,{"$f":"IF(Событие[[#This Row],[Место или название компании]]<>C1146,Событие[[#This Row],[Дата]],H1146)","v":"00:00:00"}]
[null,null,null,"  ",null,null,null,{"$f":"IF(Событие[[#This Row],[Место или название компании]]<>C1147,Событие[[#This Row],[Дата]],H1147)","v":"00:00:00"}]
[null,null,null,"  ",null,null,null,{"$f":"IF(Событие[[#This Row],[Место или название компании]]<>C1148,Событие[[#This Row],[Дата]],H1148)","v":"00:00:00"}]
[null,null,null,"  ",null,null,null,{"$f":"IF(Событие[[#This Row],[Место или название компании]]<>C1149,Событие[[#This Row],[Дата]],H1149)","v":"00:00:00"}]
[null,null,null,"  ",null,null,null,{"$f":"IF(Событие[[#This Row],[Место или название компании]]<>C1150,Событие[[#This Row],[Дата]],H1150)","v":"00:00:00"}]
[null,null,null,"  ",null,null,null,{"$f":"IF(Событие[[#This Row],[Место или название компании]]<>C1151,Событие[[#This Row],[Дата]],H1151)","v":"00:00:00"}]
[null,null,null,"  ",null,null,null,{"$f":"IF(Событие[[#This Row],[Место или название компании]]<>C1152,Событие[[#This Row],[Дата]],H1152)","v":"00:00:00"}]
[null,null,null,"  ",null,null,null,{"$f":"IF(Событие[[#This Row],[Место или название компании]]<>C1153,Событие[[#This Row],[Дата]],H1153)","v":"00:00:00"}]
[null,null,null,"  ",null,null,null,{"$f":"IF(Событие[[#This Row],[Место или название компании]]<>C1154,Событие[[#This Row],[Дата]],H1154)","v":"00:00:00"}]
[null,null,null,"  ",null,null,null,{"$f":"IF(Событие[[#This Row],[Место или название компании]]<>C1155,Событие[[#This Row],[Дата]],H1155)","v":"00:00:00"}]
[null,null,null,"  ",null,null,null,{"$f":"IF(Событие[[#This Row],[Место или название компании]]<>C1156,Событие[[#This Row],[Дата]],H1156)","v":"00:00:00"}]
[null,null,null,"  ",null,null,null,{"$f":"IF(Событие[[#This Row],[Место или название компании]]<>C1157,Событие[[#This Row],[Дата]],H1157)","v":"00:00:00"}]
[null,null,null,"  ",null,null,null,{"$f":"IF(Событие[[#This Row],[Место или название компании]]<>C1158,Событие[[#This Row],[Дата]],H1158)","v":"00:00:00"}]
[null,null,null,"  ",null,null,null,{"$f":"IF(Событие[[#This Row],[Место или название компании]]<>C1159,Событие[[#This Row],[Дата]],H1159)","v":"00:00:00"}]
[null,null,null,"  ",null,null,null,{"$f":"IF(Событие[[#This Row],[Место или название компании]]<>C1160,Событие[[#This Row],[Дата]],H1160)","v":"00:00:00"}]
[null,null,null,"  ",null,null,null,{"$f":"IF(Событие[[#This Row],[Место или название компании]]<>C1161,Событие[[#This Row],[Дата]],H1161)","v":"00:00:00"}]
[null,null,null,"  ",null,null,null,{"$f":"IF(Событие[[#This Row],[Место или название компании]]<>C1162,Событие[[#This Row],[Дата]],H1162)","v":"00:00:00"}]
[null,null,null,"  ",null,null,null,{"$f":"IF(Событие[[#This Row],[Место или название компании]]<>C1163,Событие[[#This Row],[Дата]],H1163)","v":"00:00:00"}]
[null,null,null,"  ",null,null,null,{"$f":"IF(Событие[[#This Row],[Место или название компании]]<>C1164,Событие[[#This Row],[Дата]],H1164)","v":"00:00:00"}]
[null,null,null,"  ",null,null,null,{"$f":"IF(Событие[[#This Row],[Место или название компании]]<>C1165,Событие[[#This Row],[Дата]],H1165)","v":"00:00:00"}]
[null,null,null,"  ",null,null,null,{"$f":"IF(Событие[[#This Row],[Место или название компании]]<>C1166,Событие[[#This Row],[Дата]],H1166)","v":"00:00:00"}]
[null,null,null,"  ",null,null,null,{"$f":"IF(Событие[[#This Row],[Место или название компании]]<>C1167,Событие[[#This Row],[Дата]],H1167)","v":"00:00:00"}]
[null,null,null,"  ",null,null,null,{"$f":"IF(Событие[[#This Row],[Место или название компании]]<>C1168,Событие[[#This Row],[Дата]],H1168)","v":"00:00:00"}]
[null,null,null,"  ",null,null,null,{"$f":"IF(Событие[[#This Row],[Место или название компании]]<>C1169,Событие[[#This Row],[Дата]],H1169)","v":"00:00:00"}]
[null,null,null,"  ",null,null,null,{"$f":"IF(Событие[[#This Row],[Место или название компании]]<>C1170,Событие[[#This Row],[Дата]],H1170)","v":"00:00:00"}]
[null,null,null,"  ",null,null,null,{"$f":"IF(Событие[[#This Row],[Место или название компании]]<>C1171,Событие[[#This Row],[Дата]],H1171)","v":"00:00:00"}]
[null,null,null,"  ",null,null,null,{"$f":"IF(Событие[[#This Row],[Место или название компании]]<>C1172,Событие[[#This Row],[Дата]],H1172)","v":"00:00:00"}]
[null,null,null,"  ",null,null,null,{"$f":"IF(Событие[[#This Row],[Место или название компании]]<>C1173,Событие[[#This Row],[Дата]],H1173)","v":"00:00:00"}]
[null,null,null,"  ",null,null,null,{"$f":"IF(Событие[[#This Row],[Место или название компании]]<>C1174,Событие[[#This Row],[Дата]],H1174)","v":"00:00:00"}]
[null,null,null,"  ",null,null,null,{"$f":"IF(Событие[[#This Row],[Место или название компании]]<>C1175,Событие[[#This Row],[Дата]],H1175)","v":"00:00:00"}]
[null,null,null,"  ",null,null,null,{"$f":"IF(Событие[[#This Row],[Место или название компании]]<>C1176,Событие[[#This Row],[Дата]],H1176)","v":"00:00:00"}]
[null,null,null,"  ",null,null,null,{"$f":"IF(Событие[[#This Row],[Место или название компании]]<>C1177,Событие[[#This Row],[Дата]],H1177)","v":"00:00:00"}]
[null,null,null,"  ",null,null,null,{"$f":"IF(Событие[[#This Row],[Место или название компании]]<>C1178,Событие[[#This Row],[Дата]],H1178)","v":"00:00:00"}]
[null,null,null,"  ",null,null,null,{"$f":"IF(Событие[[#This Row],[Место или название компании]]<>C1179,Событие[[#This Row],[Дата]],H1179)","v":"00:00:00"}]
[null,null,null,"  ",null,null,null,{"$f":"IF(Событие[[#This Row],[Место или название компании]]<>C1180,Событие[[#This Row],[Дата]],H1180)","v":"00:00:00"}]
[null,null,null,"  ",null,null,null,{"$f":"IF(Событие[[#This Row],[Место или название компании]]<>C1181,Событие[[#This Row],[Дата]],H1181)","v":"00:00:00"}]
[null,null,null,"  ",null,null,null,{"$f":"IF(Событие[[#This Row],[Место или название компании]]<>C1182,Событие[[#This Row],[Дата]],H1182)","v":"00:00:00"}]
[null,null,null,"  ",null,null,null,{"$f":"IF(Событие[[#This Row],[Место или название компании]]<>C1183,Событие[[#This Row],[Дата]],H1183)","v":"00:00:00"}]
[null,null,null,"  ",null,null,null,{"$f":"IF(Событие[[#This Row],[Место или название компании]]<>C1184,Событие[[#This Row],[Дата]],H1184)","v":"00:00:00"}]
[null,null,null,"  ",null,null,null,{"$f":"IF(Событие[[#This Row],[Место или название компании]]<>C1185,Событие[[#This Row],[Дата]],H1185)","v":"00:00:00"}]
[null,null,null,"  ",null,null,null,{"$f":"IF(Событие[[#This Row],[Место или название компании]]<>C1186,Событие[[#This Row],[Дата]],H1186)","v":"00:00:00"}]
[null,null,null,"  ",null,null,null,{"$f":"IF(Событие[[#This Row],[Место или название компании]]<>C1187,Событие[[#This Row],[Дата]],H1187)","v":"00:00:00"}]
[null,null,null,"  ",null,null,null,{"$f":"IF(Событие[[#This Row],[Место или название компании]]<>C1188,Событие[[#This Row],[Дата]],H1188)","v":"00:00:00"}]
[null,null,null,"  ",null,null,null,{"$f":"IF(Событие[[#This Row],[Место или название компании]]<>C1189,Событие[[#This Row],[Дата]],H1189)","v":"00:00:00"}]
[null,null,null,"  ",null,null,null,{"$f":"IF(Событие[[#This Row],[Место или название компании]]<>C1190,Событие[[#This Row],[Дата]],H1190)","v":"00:00:00"}]
[null,null,null,"  ",null,null,null,{"$f":"IF(Событие[[#This Row],[Место или название компании]]<>C1191,Событие[[#This Row],[Дата]],H1191)","v":"00:00:00"}]
[null,null,null,"  ",null,null,null,{"$f":"IF(Событие[[#This Row],[Место или название компании]]<>C1192,Событие[[#This Row],[Дата]],H1192)","v":"00:00:00"}]
[null,null,null,"  ",null,null,null,{"$f":"IF(Событие[[#This Row],[Место или название компании]]<>C1193,Событие[[#This Row],[Дата]],H1193)","v":"00:00:00"}]
[null,null,null,"  ",null,null,null,{"$f":"IF(Событие[[#This Row],[Место или название компании]]<>C1194,Событие[[#This Row],[Дата]],H1194)","v":"00:00:00"}]
[null,null,null,"  ",null,null,null,{"$f":"IF(Событие[[#This Row],[Место или название компании]]<>C1195,Событие[[#This Row],[Дата]],H1195)","v":"00:00:00"}]
[null,null,null,"  ",null,null,null,{"$f":"IF(Событие[[#This Row],[Место или название компании]]<>C1196,Событие[[#This Row],[Дата]],H1196)","v":"00:00:00"}]
[null,null,null,"  ",null,null,null,{"$f":"IF(Событие[[#This Row],[Место или название компании]]<>C1197,Событие[[#This Row],[Дата]],H1197)","v":"00:00:00"}]
[null,null,null,"  ",null,null,null,{"$f":"IF(Событие[[#This Row],[Место или название компании]]<>C1198,Событие[[#This Row],[Дата]],H1198)","v":"00:00:00"}]
[null,null,null,{"$f":"IF(E517<>\"\",\"проверка\",IF(F517<>\"\",\"семинар\",\"  \"))","v":"  "},null,null,null,{"$f":"IF(Событие[[#This Row],[Место или название компании]]<>C1199,Событие[[#This Row],[Дата]],H1199)","v":"00:00:00"}]
[null,null,null,"  ",null,null,null,{"$f":"IF(Событие[[#This Row],[Место или название компании]]<>C1200,Событие[[#This Row],[Дата]],H1200)","v":"00:00:00"}]
[null,null,null,"  ",null,null,null,{"$f":"IF(Событие[[#This Row],[Место или название компании]]<>C1201,Событие[[#This Row],[Дата]],H1201)","v":"00:00:00"}]
[null,null,null,"  ",null,null,null,{"$f":"IF(Событие[[#This Row],[Место или название компании]]<>C1202,Событие[[#This Row],[Дата]],H1202)","v":"00:00:00"}]
[null,null,null,"  ",null,null,null,{"$f":"IF(Событие[[#This Row],[Место или название компании]]<>C1203,Событие[[#This Row],[Дата]],H1203)","v":"00:00:00"}]
[null,null,null,"  ",null,null,null,{"$f":"IF(Событие[[#This Row],[Место или название компании]]<>C1204,Событие[[#This Row],[Дата]],H1204)","v":"00:00:00"}]
[null,null,null,"  ",null,null,null,{"$f":"IF(Событие[[#This Row],[Место или название компании]]<>C1205,Событие[[#This Row],[Дата]],H1205)","v":"00:00:00"}]
[null,null,null,"  ",null,null,null,{"$f":"IF(Событие[[#This Row],[Место или название компании]]<>C1206,Событие[[#This Row],[Дата]],H1206)","v":"00:00:00"}]
[null,null,null,"  ",null,null,null,{"$f":"IF(Событие[[#This Row],[Место или название компании]]<>C1207,Событие[[#This Row],[Дата]],H1207)","v":"00:00:00"}]
[null,null,null,"  ",null,null,null,{"$f":"IF(Событие[[#This Row],[Место или название компании]]<>C1208,Событие[[#This Row],[Дата]],H1208)","v":"00:00:00"}]
[null,null,null,"  ",null,null,null,{"$f":"IF(Событие[[#This Row],[Место или название компании]]<>C1209,Событие[[#This Row],[Дата]],H1209)","v":"00:00:00"}]
[null,null,null,"  ",null,null,null,{"$f":"IF(Событие[[#This Row],[Место или название компании]]<>C1210,Событие[[#This Row],[Дата]],H1210)","v":"00:00:00"}]
[null,null,null,"  ",null,null,null,{"$f":"IF(Событие[[#This Row],[Место или название компании]]<>C1211,Событие[[#This Row],[Дата]],H1211)","v":"00:00:00"}]
[null,null,null,"  ",null,null,null,{"$f":"IF(Событие[[#This Row],[Место или название компании]]<>C1212,Событие[[#This Row],[Дата]],H1212)","v":"00:00:00"}]
[null,null,null,"  ",null,null,null,{"$f":"IF(Событие[[#This Row],[Место или название компании]]<>C1213,Событие[[#This Row],[Дата]],H1213)","v":"00:00:00"}]
[null,null,null,"  ",null,null,null,{"$f":"IF(Событие[[#This Row],[Место или название компании]]<>C1214,Событие[[#This Row],[Дата]],H1214)","v":"00:00:00"}]
[null,null,null,"  ",null,null,null,{"$f":"IF(Событие[[#This Row],[Место или название компании]]<>C1215,Событие[[#This Row],[Дата]],H1215)","v":"00:00:00"}]
[null,null,null,"  ",null,null,null,{"$f":"IF(Событие[[#This Row],[Место или название компании]]<>C1216,Событие[[#This Row],[Дата]],H1216)","v":"00:00:00"}]
[null,null,null,"  ",null,null,null,{"$f":"IF(Событие[[#This Row],[Место или название компании]]<>C1217,Событие[[#This Row],[Дата]],H1217)","v":"00:00:00"}]
[null,null,null,"  ",null,null,null,{"$f":"IF(Событие[[#This Row],[Место или название компании]]<>C1218,Событие[[#This Row],[Дата]],H1218)","v":"00:00:00"}]
[null,null,null,"  ",null,null,null,{"$f":"IF(Событие[[#This Row],[Место или название компании]]<>C1219,Событие[[#This Row],[Дата]],H1219)","v":"00:00:00"}]
[null,null,null,"  ",null,null,null,{"$f":"IF(Событие[[#This Row],[Место или название компании]]<>C1220,Событие[[#This Row],[Дата]],H1220)","v":"00:00:00"}]
[null,null,null,"  ",null,null,null,{"$f":"IF(Событие[[#This Row],[Место или название компании]]<>C1221,Событие[[#This Row],[Дата]],H1221)","v":"00:00:00"}]
[null,null,null,"  ",null,null,null,{"$f":"IF(Событие[[#This Row],[Место или название компании]]<>C1222,Событие[[#This Row],[Дата]],H1222)","v":"00:00:00"}]
[null,null,null,"  ",null,null,null,{"$f":"IF(Событие[[#This Row],[Место или название компании]]<>C1223,Событие[[#This Row],[Дата]],H1223)","v":"00:00:00"}]
[null,null,null,"  ",null,null,null,{"$f":"IF(Событие[[#This Row],[Место или название компании]]<>C1224,Событие[[#This Row],[Дата]],H1224)","v":"00:00:00"}]
[null,null,null,"  ",null,null,null,{"$f":"IF(Событие[[#This Row],[Место или название компании]]<>C1225,Событие[[#This Row],[Дата]],H1225)","v":"00:00:00"}]
[null,null,null,"  ",null,null,null,{"$f":"IF(Событие[[#This Row],[Место или название компании]]<>C1226,Событие[[#This Row],[Дата]],H1226)","v":"00:00:00"}]
[null,null,null,"  ",null,null,null,{"$f":"IF(Событие[[#This Row],[Место или название компании]]<>C1227,Событие[[#This Row],[Дата]],H1227)","v":"00:00:00"}]
[null,null,null,"  ",null,null,null,{"$f":"IF(Событие[[#This Row],[Место или название компании]]<>C1228,Событие[[#This Row],[Дата]],H1228)","v":"00:00:00"}]
[null,null,null,"  ",null,null,null,{"$f":"IF(Событие[[#This Row],[Место или название компании]]<>C1229,Событие[[#This Row],[Дата]],H1229)","v":"00:00:00"}]
[null,null,null,"  ",null,null,null,{"$f":"IF(Событие[[#This Row],[Место или название компании]]<>C1230,Событие[[#This Row],[Дата]],H1230)","v":"00:00:00"}]
[null,null,null,"  ",null,null,null,{"$f":"IF(Событие[[#This Row],[Место или название компании]]<>C1231,Событие[[#This Row],[Дата]],H1231)","v":"00:00:00"}]
[null,null,null,"  ",null,null,null,{"$f":"IF(Событие[[#This Row],[Место или название компании]]<>C1232,Событие[[#This Row],[Дата]],H1232)","v":"00:00:00"}]
[null,null,null,"  ",null,null,null,{"$f":"IF(Событие[[#This Row],[Место или название компании]]<>C1233,Событие[[#This Row],[Дата]],H1233)","v":"00:00:00"}]
[null,null,null,"  ",null,null,null,{"$f":"IF(Событие[[#This Row],[Место или название компании]]<>C1234,Событие[[#This Row],[Дата]],H1234)","v":"00:00:00"}]
[null,null,null,"  ",null,null,null,{"$f":"IF(Событие[[#This Row],[Место или название компании]]<>C1235,Событие[[#This Row],[Дата]],H1235)","v":"00:00:00"}]
[null,null,null,"  ",null,null,null,{"$f":"IF(Событие[[#This Row],[Место или название компании]]<>C1236,Событие[[#This Row],[Дата]],H1236)","v":"00:00:00"}]
[null,null,null,"  ",null,null,null,{"$f":"IF(Событие[[#This Row],[Место или название компании]]<>C1237,Событие[[#This Row],[Дата]],H1237)","v":"00:00:00"}]
[null,null,null,"  ",null,null,null,{"$f":"IF(Событие[[#This Row],[Место или название компании]]<>C1238,Событие[[#This Row],[Дата]],H1238)","v":"00:00:00"}]
[null,null,null,"  ",null,null,null,{"$f":"IF(Событие[[#This Row],[Место или название компании]]<>C1239,Событие[[#This Row],[Дата]],H1239)","v":"00:00:00"}]
[null,null,null,"  ",null,null,null,{"$f":"IF(Событие[[#This Row],[Место или название компании]]<>C1240,Событие[[#This Row],[Дата]],H1240)","v":"00:00:00"}]
[null,null,null,"  ",null,null,null,{"$f":"IF(Событие[[#This Row],[Место или название компании]]<>C1241,Событие[[#This Row],[Дата]],H1241)","v":"00:00:00"}]
[null,null,null,"  ",null,null,null,{"$f":"IF(Событие[[#This Row],[Место или название компании]]<>C1242,Событие[[#This Row],[Дата]],H1242)","v":"00:00:00"}]
[null,null,null,"  ",null,null,null,{"$f":"IF(Событие[[#This Row],[Место или название компании]]<>C1243,Событие[[#This Row],[Дата]],H1243)","v":"00:00:00"}]
[null,null,null,"  ",null,null,null,{"$f":"IF(Событие[[#This Row],[Место или название компании]]<>C1244,Событие[[#This Row],[Дата]],H1244)","v":"00:00:00"}]
[null,null,null,"  ",null,null,null,{"$f":"IF(Событие[[#This Row],[Место или название компании]]<>C1245,Событие[[#This Row],[Дата]],H1245)","v":"00:00:00"}]
[null,null,null,"  ",null,null,null,{"$f":"IF(Событие[[#This Row],[Место или название компании]]<>C1246,Событие[[#This Row],[Дата]],H1246)","v":"00:00:00"}]
[null,null,null,"  ",null,null,null,{"$f":"IF(Событие[[#This Row],[Место или название компании]]<>C1247,Событие[[#This Row],[Дата]],H1247)","v":"00:00:00"}]
[null,null,null,"  ",null,null,null,{"$f":"IF(Событие[[#This Row],[Место или название компании]]<>C1248,Событие[[#This Row],[Дата]],H1248)","v":"00:00:00"}]
[null,null,null,"  ",null,null,null,{"$f":"IF(Событие[[#This Row],[Место или название компании]]<>C1249,Событие[[#This Row],[Дата]],H1249)","v":"00:00:00"}]
[null,null,null,"  ",null,null,null,{"$f":"IF(Событие[[#This Row],[Место или название компании]]<>C1250,Событие[[#This Row],[Дата]],H1250)","v":"00:00:00"}]
[null,null,null,"  ",null,null,null,{"$f":"IF(Событие[[#This Row],[Место или название компании]]<>C1251,Событие[[#This Row],[Дата]],H1251)","v":"00:00:00"}]
[null,null,null,"  ",null,null,null,{"$f":"IF(Событие[[#This Row],[Место или название компании]]<>C1252,Событие[[#This Row],[Дата]],H1252)","v":"00:00:00"}]
[null,null,null,"  ",null,null,null,{"$f":"IF(Событие[[#This Row],[Место или название компании]]<>C1253,Событие[[#This Row],[Дата]],H1253)","v":"00:00:00"}]
[null,null,null,"  ",null,null,null,{"$f":"IF(Событие[[#This Row],[Место или название компании]]<>C1254,Событие[[#This Row],[Дата]],H1254)","v":"00:00:00"}]
[null,null,null,"  ",null,null,null,{"$f":"IF(Событие[[#This Row],[Место или название компании]]<>C1255,Событие[[#This Row],[Дата]],H1255)","v":"00:00:00"}]
[null,null,null,"  ",null,null,null,{"$f":"IF(Событие[[#This Row],[Место или название компании]]<>C1256,Событие[[#This Row],[Дата]],H1256)","v":"00:00:00"}]
[null,null,null,"  ",null,null,null,{"$f":"IF(Событие[[#This Row],[Место или название компании]]<>C1257,Событие[[#This Row],[Дата]],H1257)","v":"00:00:00"}]
[null,null,null,"  ",null,null,null,{"$f":"IF(Событие[[#This Row],[Место или название компании]]<>C1258,Событие[[#This Row],[Дата]],H1258)","v":"00:00:00"}]
[null,null,null,"  ",null,null,null,{"$f":"IF(Событие[[#This Row],[Место или название компании]]<>C1259,Событие[[#This Row],[Дата]],H1259)","v":"00:00:00"}]
[null,null,null,"  ",null,null,null,{"$f":"IF(Событие[[#This Row],[Место или название компании]]<>C1260,Событие[[#This Row],[Дата]],H1260)","v":"00:00:00"}]
[null,null,null,"  ",null,null,null,{"$f":"IF(Событие[[#This Row],[Место или название компании]]<>C1261,Событие[[#This Row],[Дата]],H1261)","v":"00:00:00"}]
[null,null,null,"  ",null,null,null,{"$f":"IF(Событие[[#This Row],[Место или название компании]]<>C1262,Событие[[#This Row],[Дата]],H1262)","v":"00:00:00"}]
[null,null,null,{"$f":"IF(E581<>\"\",\"проверка\",IF(F581<>\"\",\"семинар\",\"  \"))","v":"  "},null,null,null,{"$f":"IF(Событие[[#This Row],[Место или название компании]]<>C1263,Событие[[#This Row],[Дата]],H1263)","v":"00:00:00"}]
[null,null,null,"  ",null,null,null,{"$f":"IF(Событие[[#This Row],[Место или название компании]]<>C1264,Событие[[#This Row],[Дата]],H1264)","v":"00:00:00"}]
[null,null,null,"  ",null,null,null,{"$f":"IF(Событие[[#This Row],[Место или название компании]]<>C1265,Событие[[#This Row],[Дата]],H1265)","v":"00:00:00"}]
[null,null,null,"  ",null,null,null,{"$f":"IF(Событие[[#This Row],[Место или название компании]]<>C1266,Событие[[#This Row],[Дата]],H1266)","v":"00:00:00"}]
[null,null,null,"  ",null,null,null,{"$f":"IF(Событие[[#This Row],[Место или название компании]]<>C1267,Событие[[#This Row],[Дата]],H1267)","v":"00:00:00"}]
[null,null,null,"  ",null,null,null,{"$f":"IF(Событие[[#This Row],[Место или название компании]]<>C1268,Событие[[#This Row],[Дата]],H1268)","v":"00:00:00"}]
[null,null,null,"  ",null,null,null,{"$f":"IF(Событие[[#This Row],[Место или название компании]]<>C1269,Событие[[#This Row],[Дата]],H1269)","v":"00:00:00"}]
[null,null,null,"  ",null,null,null,{"$f":"IF(Событие[[#This Row],[Место или название компании]]<>C1270,Событие[[#This Row],[Дата]],H1270)","v":"00:00:00"}]
[null,null,null,"  ",null,null,null,{"$f":"IF(Событие[[#This Row],[Место или название компании]]<>C1271,Событие[[#This Row],[Дата]],H1271)","v":"00:00:00"}]
[null,null,null,"  ",null,null,null,{"$f":"IF(Событие[[#This Row],[Место или название компании]]<>C1272,Событие[[#This Row],[Дата]],H1272)","v":"00:00:00"}]
[null,null,null,"  ",null,null,null,{"$f":"IF(Событие[[#This Row],[Место или название компании]]<>C1273,Событие[[#This Row],[Дата]],H1273)","v":"00:00:00"}]
[null,null,null,"  ",null,null,null,{"$f":"IF(Событие[[#This Row],[Место или название компании]]<>C1274,Событие[[#This Row],[Дата]],H1274)","v":"00:00:00"}]
[null,null,null,"  ",null,null,null,{"$f":"IF(Событие[[#This Row],[Место или название компании]]<>C1275,Событие[[#This Row],[Дата]],H1275)","v":"00:00:00"}]
[null,null,null,"  ",null,null,null,{"$f":"IF(Событие[[#This Row],[Место или название компании]]<>C1276,Событие[[#This Row],[Дата]],H1276)","v":"00:00:00"}]
[null,null,null,"  ",null,null,null,{"$f":"IF(Событие[[#This Row],[Место или название компании]]<>C1277,Событие[[#This Row],[Дата]],H1277)","v":"00:00:00"}]
[null,null,null,"  ",null,null,null,{"$f":"IF(Событие[[#This Row],[Место или название компании]]<>C1278,Событие[[#This Row],[Дата]],H1278)","v":"00:00:00"}]
[null,null,null,"  ",null,null,null,{"$f":"IF(Событие[[#This Row],[Место или название компании]]<>C1279,Событие[[#This Row],[Дата]],H1279)","v":"00:00:00"}]
[null,null,null,"  ",null,null,null,{"$f":"IF(Событие[[#This Row],[Место или название компании]]<>C1280,Событие[[#This Row],[Дата]],H1280)","v":"00:00:00"}]
[null,null,null,"  ",null,null,null,{"$f":"IF(Событие[[#This Row],[Место или название компании]]<>C1281,Событие[[#This Row],[Дата]],H1281)","v":"00:00:00"}]
[null,null,null,"  ",null,null,null,{"$f":"IF(Событие[[#This Row],[Место или название компании]]<>C1282,Событие[[#This Row],[Дата]],H1282)","v":"00:00:00"}]
[null,null,null,"  ",null,null,null,{"$f":"IF(Событие[[#This Row],[Место или название компании]]<>C1283,Событие[[#This Row],[Дата]],H1283)","v":"00:00:00"}]
[null,null,null,"  ",null,null,null,{"$f":"IF(Событие[[#This Row],[Место или название компании]]<>C1284,Событие[[#This Row],[Дата]],H1284)","v":"00:00:00"}]
[null,null,null,"  ",null,null,null,{"$f":"IF(Событие[[#This Row],[Место или название компании]]<>C1285,Событие[[#This Row],[Дата]],H1285)","v":"00:00:00"}]
[null,null,null,"  ",null,null,null,{"$f":"IF(Событие[[#This Row],[Место или название компании]]<>C1286,Событие[[#This Row],[Дата]],H1286)","v":"00:00:00"}]
[null,null,null,"  ",null,null,null,{"$f":"IF(Событие[[#This Row],[Место или название компании]]<>C1287,Событие[[#This Row],[Дата]],H1287)","v":"00:00:00"}]
[null,null,null,"  ",null,null,null,{"$f":"IF(Событие[[#This Row],[Место или название компании]]<>C1288,Событие[[#This Row],[Дата]],H1288)","v":"00:00:00"}]
[null,null,null,"  ",null,null,null,{"$f":"IF(Событие[[#This Row],[Место или название компании]]<>C1289,Событие[[#This Row],[Дата]],H1289)","v":"00:00:00"}]
[null,null,null,"  ",null,null,null,{"$f":"IF(Событие[[#This Row],[Место или название компании]]<>C1290,Событие[[#This Row],[Дата]],H1290)","v":"00:00:00"}]
[null,null,null,"  ",null,null,null,{"$f":"IF(Событие[[#This Row],[Место или название компании]]<>C1291,Событие[[#This Row],[Дата]],H1291)","v":"00:00:00"}]
[null,null,null,"  ",null,null,null,{"$f":"IF(Событие[[#This Row],[Место или название компании]]<>C1292,Событие[[#This Row],[Дата]],H1292)","v":"00:00:00"}]
[null,null,null,"  ",null,null,null,{"$f":"IF(Событие[[#This Row],[Место или название компании]]<>C1293,Событие[[#This Row],[Дата]],H1293)","v":"00:00:00"}]
[null,null,null,"  ",null,null,null,{"$f":"IF(Событие[[#This Row],[Место или название компании]]<>C1294,Событие[[#This Row],[Дата]],H1294)","v":"00:00:00"}]
[null,null,null,"  ",null,null,null,{"$f":"IF(Событие[[#This Row],[Место или название компании]]<>C1295,Событие[[#This Row],[Дата]],H1295)","v":"00:00:00"}]
[null,null,null,"  ",null,null,null,{"$f":"IF(Событие[[#This Row],[Место или название компании]]<>C1296,Событие[[#This Row],[Дата]],H1296)","v":"00:00:00"}]
[null,null,null,"  ",null,null,null,{"$f":"IF(Событие[[#This Row],[Место или название компании]]<>C1297,Событие[[#This Row],[Дата]],H1297)","v":"00:00:00"}]
[null,null,null,"  ",null,null,null,{"$f":"IF(Событие[[#This Row],[Место или название компании]]<>C1298,Событие[[#This Row],[Дата]],H1298)","v":"00:00:00"}]
[null,null,null,"  ",null,null,null,{"$f":"IF(Событие[[#This Row],[Место или название компании]]<>C1299,Событие[[#This Row],[Дата]],H1299)","v":"00:00:00"}]
[null,null,null,"  ",null,null,null,{"$f":"IF(Событие[[#This Row],[Место или название компании]]<>C1300,Событие[[#This Row],[Дата]],H1300)","v":"00:00:00"}]
[null,null,null,"  ",null,null,null,{"$f":"IF(Событие[[#This Row],[Место или название компании]]<>C1301,Событие[[#This Row],[Дата]],H1301)","v":"00:00:00"}]
[null,null,null,"  ",null,null,null,{"$f":"IF(Событие[[#This Row],[Место или название компании]]<>C1302,Событие[[#This Row],[Дата]],H1302)","v":"00:00:00"}]
[null,null,null,"  ",null,null,null,{"$f":"IF(Событие[[#This Row],[Место или название компании]]<>C1303,Событие[[#This Row],[Дата]],H1303)","v":"00:00:00"}]
[null,null,null,"  ",null,null,null,{"$f":"IF(Событие[[#This Row],[Место или название компании]]<>C1304,Событие[[#This Row],[Дата]],H1304)","v":"00:00:00"}]
[null,null,null,"  ",null,null,null,{"$f":"IF(Событие[[#This Row],[Место или название компании]]<>C1305,Событие[[#This Row],[Дата]],H1305)","v":"00:00:00"}]
[null,null,null,"  ",null,null,null,{"$f":"IF(Событие[[#This Row],[Место или название компании]]<>C1306,Событие[[#This Row],[Дата]],H1306)","v":"00:00:00"}]
[null,null,null,"  ",null,null,null,{"$f":"IF(Событие[[#This Row],[Место или название компании]]<>C1307,Событие[[#This Row],[Дата]],H1307)","v":"00:00:00"}]
[null,null,null,"  ",null,null,null,{"$f":"IF(Событие[[#This Row],[Место или название компании]]<>C1308,Событие[[#This Row],[Дата]],H1308)","v":"00:00:00"}]
[null,null,null,"  ",null,null,null,{"$f":"IF(Событие[[#This Row],[Место или название компании]]<>C1309,Событие[[#This Row],[Дата]],H1309)","v":"00:00:00"}]
[null,null,null,"  ",null,null,null,{"$f":"IF(Событие[[#This Row],[Место или название компании]]<>C1310,Событие[[#This Row],[Дата]],H1310)","v":"00:00:00"}]
[null,null,null,"  ",null,null,null,{"$f":"IF(Событие[[#This Row],[Место или название компании]]<>C1311,Событие[[#This Row],[Дата]],H1311)","v":"00:00:00"}]
[null,null,null,"  ",null,null,null,{"$f":"IF(Событие[[#This Row],[Место или название компании]]<>C1312,Событие[[#This Row],[Дата]],H1312)","v":"00:00:00"}]
[null,null,null,"  ",null,null,null,{"$f":"IF(Событие[[#This Row],[Место или название компании]]<>C1313,Событие[[#This Row],[Дата]],H1313)","v":"00:00:00"}]
[null,null,null,"  ",null,null,null,{"$f":"IF(Событие[[#This Row],[Место или название компании]]<>C1314,Событие[[#This Row],[Дата]],H1314)","v":"00:00:00"}]
[null,null,null,"  ",null,null,null,{"$f":"IF(Событие[[#This Row],[Место или название компании]]<>C1315,Событие[[#This Row],[Дата]],H1315)","v":"00:00:00"}]
[null,null,null,"  ",null,null,null,{"$f":"IF(Событие[[#This Row],[Место или название компании]]<>C1316,Событие[[#This Row],[Дата]],H1316)","v":"00:00:00"}]
[null,null,null,"  ",null,null,null,{"$f":"IF(Событие[[#This Row],[Место или название компании]]<>C1317,Событие[[#This Row],[Дата]],H1317)","v":"00:00:00"}]
[null,null,null,"  ",null,null,null,{"$f":"IF(Событие[[#This Row],[Место или название компании]]<>C1318,Событие[[#This Row],[Дата]],H1318)","v":"00:00:00"}]
[null,null,null,"  ",null,null,null,{"$f":"IF(Событие[[#This Row],[Место или название компании]]<>C1319,Событие[[#This Row],[Дата]],H1319)","v":"00:00:00"}]
[null,null,null,"  ",null,null,null,{"$f":"IF(Событие[[#This Row],[Место или название компании]]<>C1320,Событие[[#This Row],[Дата]],H1320)","v":"00:00:00"}]
[null,null,null,"  ",null,null,null,{"$f":"IF(Событие[[#This Row],[Место или название компании]]<>C1321,Событие[[#This Row],[Дата]],H1321)","v":"00:00:00"}]
[null,null,null,"  ",null,null,null,{"$f":"IF(Событие[[#This Row],[Место или название компании]]<>C1322,Событие[[#This Row],[Дата]],H1322)","v":"00:00:00"}]
[null,null,null,"  ",null,null,null,{"$f":"IF(Событие[[#This Row],[Место или название компании]]<>C1323,Событие[[#This Row],[Дата]],H1323)","v":"00:00:00"}]
[null,null,null,"  ",null,null,null,{"$f":"IF(Событие[[#This Row],[Место или название компании]]<>C1324,Событие[[#This Row],[Дата]],H1324)","v":"00:00:00"}]
[null,null,null,"  ",null,null,null,{"$f":"IF(Событие[[#This Row],[Место или название компании]]<>C1325,Событие[[#This Row],[Дата]],H1325)","v":"00:00:00"}]
[null,null,null,"  ",null,null,null,{"$f":"IF(Событие[[#This Row],[Место или название компании]]<>C1326,Событие[[#This Row],[Дата]],H1326)","v":"00:00:00"}]
[null,null,null,{"$f":"IF(E645<>\"\",\"проверка\",IF(F645<>\"\",\"семинар\",\"  \"))","v":"  "},null,null,null,{"$f":"IF(Событие[[#This Row],[Место или название компании]]<>C1327,Событие[[#This Row],[Дата]],H1327)","v":"00:00:00"}]
[null,null,null,"  ",null,null,null,{"$f":"IF(Событие[[#This Row],[Место или название компании]]<>C1328,Событие[[#This Row],[Дата]],H1328)","v":"00:00:00"}]
[null,null,null,"  ",null,null,null,{"$f":"IF(Событие[[#This Row],[Место или название компании]]<>C1329,Событие[[#This Row],[Дата]],H1329)","v":"00:00:00"}]
[null,null,null,"  ",null,null,null,{"$f":"IF(Событие[[#This Row],[Место или название компании]]<>C1330,Событие[[#This Row],[Дата]],H1330)","v":"00:00:00"}]
[null,null,null,"  ",null,null,null,{"$f":"IF(Событие[[#This Row],[Место или название компании]]<>C1331,Событие[[#This Row],[Дата]],H1331)","v":"00:00:00"}]
[null,null,null,"  ",null,null,null,{"$f":"IF(Событие[[#This Row],[Место или название компании]]<>C1332,Событие[[#This Row],[Дата]],H1332)","v":"00:00:00"}]
[null,null,null,"  ",null,null,null,{"$f":"IF(Событие[[#This Row],[Место или название компании]]<>C1333,Событие[[#This Row],[Дата]],H1333)","v":"00:00:00"}]
[null,null,null,"  ",null,null,null,{"$f":"IF(Событие[[#This Row],[Место или название компании]]<>C1334,Событие[[#This Row],[Дата]],H1334)","v":"00:00:00"}]
[null,null,null,"  ",null,null,null,{"$f":"IF(Событие[[#This Row],[Место или название компании]]<>C1335,Событие[[#This Row],[Дата]],H1335)","v":"00:00:00"}]
[null,null,null,"  ",null,null,null,{"$f":"IF(Событие[[#This Row],[Место или название компании]]<>C1336,Событие[[#This Row],[Дата]],H1336)","v":"00:00:00"}]
[null,null,null,"  ",null,null,null,{"$f":"IF(Событие[[#This Row],[Место или название компании]]<>C1337,Событие[[#This Row],[Дата]],H1337)","v":"00:00:00"}]
[null,null,null,"  ",null,null,null,{"$f":"IF(Событие[[#This Row],[Место или название компании]]<>C1338,Событие[[#This Row],[Дата]],H1338)","v":"00:00:00"}]
[null,null,null,"  ",null,null,null,{"$f":"IF(Событие[[#This Row],[Место или название компании]]<>C1339,Событие[[#This Row],[Дата]],H1339)","v":"00:00:00"}]
[null,null,null,"  ",null,null,null,{"$f":"IF(Событие[[#This Row],[Место или название компании]]<>C1340,Событие[[#This Row],[Дата]],H1340)","v":"00:00:00"}]
[null,null,null,"  ",null,null,null,{"$f":"IF(Событие[[#This Row],[Место или название компании]]<>C1341,Событие[[#This Row],[Дата]],H1341)","v":"00:00:00"}]
[null,null,null,"  ",null,null,null,{"$f":"IF(Событие[[#This Row],[Место или название компании]]<>C1342,Событие[[#This Row],[Дата]],H1342)","v":"00:00:00"}]
[null,null,null,"  ",null,null,null,{"$f":"IF(Событие[[#This Row],[Место или название компании]]<>C1343,Событие[[#This Row],[Дата]],H1343)","v":"00:00:00"}]
[null,null,null,"  ",null,null,null,{"$f":"IF(Событие[[#This Row],[Место или название компании]]<>C1344,Событие[[#This Row],[Дата]],H1344)","v":"00:00:00"}]
[null,null,null,"  ",null,null,null,{"$f":"IF(Событие[[#This Row],[Место или название компании]]<>C1345,Событие[[#This Row],[Дата]],H1345)","v":"00:00:00"}]
[null,null,null,"  ",null,null,null,{"$f":"IF(Событие[[#This Row],[Место или название компании]]<>C1346,Событие[[#This Row],[Дата]],H1346)","v":"00:00:00"}]
[null,null,null,"  ",null,null,null,{"$f":"IF(Событие[[#This Row],[Место или название компании]]<>C1347,Событие[[#This Row],[Дата]],H1347)","v":"00:00:00"}]
[null,null,null,"  ",null,null,null,{"$f":"IF(Событие[[#This Row],[Место или название компании]]<>C1348,Событие[[#This Row],[Дата]],H1348)","v":"00:00:00"}]
[null,null,null,"  ",null,null,null,{"$f":"IF(Событие[[#This Row],[Место или название компании]]<>C1349,Событие[[#This Row],[Дата]],H1349)","v":"00:00:00"}]
[null,null,null,"  ",null,null,null,{"$f":"IF(Событие[[#This Row],[Место или название компании]]<>C1350,Событие[[#This Row],[Дата]],H1350)","v":"00:00:00"}]
[null,null,null,"  ",null,null,null,{"$f":"IF(Событие[[#This Row],[Место или название компании]]<>C1351,Событие[[#This Row],[Дата]],H1351)","v":"00:00:00"}]
[null,null,null,"  ",null,null,null,{"$f":"IF(Событие[[#This Row],[Место или название компании]]<>C1352,Событие[[#This Row],[Дата]],H1352)","v":"00:00:00"}]
[null,null,null,"  ",null,null,null,{"$f":"IF(Событие[[#This Row],[Место или название компании]]<>C1353,Событие[[#This Row],[Дата]],H1353)","v":"00:00:00"}]
[null,null,null,"  ",null,null,null,{"$f":"IF(Событие[[#This Row],[Место или название компании]]<>C1354,Событие[[#This Row],[Дата]],H1354)","v":"00:00:00"}]
[null,null,null,"  ",null,null,null,{"$f":"IF(Событие[[#This Row],[Место или название компании]]<>C1355,Событие[[#This Row],[Дата]],H1355)","v":"00:00:00"}]
[null,null,null,"  ",null,null,null,{"$f":"IF(Событие[[#This Row],[Место или название компании]]<>C1356,Событие[[#This Row],[Дата]],H1356)","v":"00:00:00"}]
[null,null,null,"  ",null,null,null,{"$f":"IF(Событие[[#This Row],[Место или название компании]]<>C1357,Событие[[#This Row],[Дата]],H1357)","v":"00:00:00"}]
[null,null,null,"  ",null,null,null,{"$f":"IF(Событие[[#This Row],[Место или название компании]]<>C1358,Событие[[#This Row],[Дата]],H1358)","v":"00:00:00"}]
[null,null,null,"  ",null,null,null,{"$f":"IF(Событие[[#This Row],[Место или название компании]]<>C1359,Событие[[#This Row],[Дата]],H1359)","v":"00:00:00"}]
[null,null,null,"  ",null,null,null,{"$f":"IF(Событие[[#This Row],[Место или название компании]]<>C1360,Событие[[#This Row],[Дата]],H1360)","v":"00:00:00"}]
[null,null,null,"  ",null,null,null,{"$f":"IF(Событие[[#This Row],[Место или название компании]]<>C1361,Событие[[#This Row],[Дата]],H1361)","v":"00:00:00"}]
[null,null,null,"  ",null,null,null,{"$f":"IF(Событие[[#This Row],[Место или название компании]]<>C1362,Событие[[#This Row],[Дата]],H1362)","v":"00:00:00"}]
[null,null,null,"  ",null,null,null,{"$f":"IF(Событие[[#This Row],[Место или название компании]]<>C1363,Событие[[#This Row],[Дата]],H1363)","v":"00:00:00"}]
[null,null,null,"  ",null,null,null,{"$f":"IF(Событие[[#This Row],[Место или название компании]]<>C1364,Событие[[#This Row],[Дата]],H1364)","v":"00:00:00"}]
[null,null,null,"  ",null,null,null,{"$f":"IF(Событие[[#This Row],[Место или название компании]]<>C1365,Событие[[#This Row],[Дата]],H1365)","v":"00:00:00"}]
[null,null,null,"  ",null,null,null,{"$f":"IF(Событие[[#This Row],[Место или название компании]]<>C1366,Событие[[#This Row],[Дата]],H1366)","v":"00:00:00"}]
[null,null,null,"  ",null,null,null,{"$f":"IF(Событие[[#This Row],[Место или название компании]]<>C1367,Событие[[#This Row],[Дата]],H1367)","v":"00:00:00"}]
[null,null,null,"  ",null,null,null,{"$f":"IF(Событие[[#This Row],[Место или название компании]]<>C1368,Событие[[#This Row],[Дата]],H1368)","v":"00:00:00"}]
[null,null,null,"  ",null,null,null,{"$f":"IF(Событие[[#This Row],[Место или название компании]]<>C1369,Событие[[#This Row],[Дата]],H1369)","v":"00:00:00"}]
[null,null,null,"  ",null,null,null,{"$f":"IF(Событие[[#This Row],[Место или название компании]]<>C1370,Событие[[#This Row],[Дата]],H1370)","v":"00:00:00"}]
[null,null,null,"  ",null,null,null,{"$f":"IF(Событие[[#This Row],[Место или название компании]]<>C1371,Событие[[#This Row],[Дата]],H1371)","v":"00:00:00"}]
[null,null,null,"  ",null,null,null,{"$f":"IF(Событие[[#This Row],[Место или название компании]]<>C1372,Событие[[#This Row],[Дата]],H1372)","v":"00:00:00"}]
[null,null,null,"  ",null,null,null,{"$f":"IF(Событие[[#This Row],[Место или название компании]]<>C1373,Событие[[#This Row],[Дата]],H1373)","v":"00:00:00"}]
[null,null,null,"  ",null,null,null,{"$f":"IF(Событие[[#This Row],[Место или название компании]]<>C1374,Событие[[#This Row],[Дата]],H1374)","v":"00:00:00"}]
[null,null,null,"  ",null,null,null,{"$f":"IF(Событие[[#This Row],[Место или название компании]]<>C1375,Событие[[#This Row],[Дата]],H1375)","v":"00:00:00"}]
[null,null,null,"  ",null,null,null,{"$f":"IF(Событие[[#This Row],[Место или название компании]]<>C1376,Событие[[#This Row],[Дата]],H1376)","v":"00:00:00"}]
[null,null,null,"  ",null,null,null,{"$f":"IF(Событие[[#This Row],[Место или название компании]]<>C1377,Событие[[#This Row],[Дата]],H1377)","v":"00:00:00"}]
[null,null,null,"  ",null,null,null,{"$f":"IF(Событие[[#This Row],[Место или название компании]]<>C1378,Событие[[#This Row],[Дата]],H1378)","v":"00:00:00"}]
[null,null,null,"  ",null,null,null,{"$f":"IF(Событие[[#This Row],[Место или название компании]]<>C1379,Событие[[#This Row],[Дата]],H1379)","v":"00:00:00"}]
[null,null,null,"  ",null,null,null,{"$f":"IF(Событие[[#This Row],[Место или название компании]]<>C1380,Событие[[#This Row],[Дата]],H1380)","v":"00:00:00"}]
[null,null,null,"  ",null,null,null,{"$f":"IF(Событие[[#This Row],[Место или название компании]]<>C1381,Событие[[#This Row],[Дата]],H1381)","v":"00:00:00"}]
[null,null,null,"  ",null,null,null,{"$f":"IF(Событие[[#This Row],[Место или название компании]]<>C1382,Событие[[#This Row],[Дата]],H1382)","v":"00:00:00"}]
[null,null,null,"  ",null,null,null,{"$f":"IF(Событие[[#This Row],[Место или название компании]]<>C1383,Событие[[#This Row],[Дата]],H1383)","v":"00:00:00"}]
[null,null,null,"  ",null,null,null,{"$f":"IF(Событие[[#This Row],[Место или название компании]]<>C1384,Событие[[#This Row],[Дата]],H1384)","v":"00:00:00"}]